Publisher Label,Publisher URI,"Supplier ID","Supplier","Invoice No.","Amount £","Purpose","Transaction Number","Payment Date","Organisational Unit","Cost Centre(T)","Internal Category Number"
"Wolverhampton City Council","http://opendatacommunities.org/id/metropolitan-district-council/wolverhampton","700194","Michelle Caney","INVMC27","1,268.75","Services - Professional Fees","130221615","11/07/2018","Legal Services","Centralised External Legal Costs","R4400"
"Wolverhampton City Council","http://opendatacommunities.org/id/metropolitan-district-council/wolverhampton","700264","Acorn Environmental Mgt Group Limited","11572","1,850.96","Grounds Maintenance - Contract","130220743","13/07/2018","Environmental Maintenance","Arbor Scheme","R2075"
"Wolverhampton City Council","http://opendatacommunities.org/id/metropolitan-district-council/wolverhampton","700264","Acorn Environmental Mgt Group Limited","11567","2,419.12","Grounds Maintenance - Contract","130219834","11/07/2018","Environmental Maintenance","Arbor Scheme","R2075"
"Wolverhampton City Council","http://opendatacommunities.org/id/metropolitan-district-council/wolverhampton","700264","Acorn Environmental Mgt Group Limited","11566","8,823.38","Grounds Maintenance - Contract","130219833","11/07/2018","Environmental Maintenance","Arbor Scheme","R2075"
"Wolverhampton City Council","http://opendatacommunities.org/id/metropolitan-district-council/wolverhampton","700264","Acorn Environmental Mgt Group Limited","11577","1,170.00","Services - Professional Fees","130220479","04/07/2018","Housing","Wholly Owned Company - Operations","R4400"
"Wolverhampton City Council","http://opendatacommunities.org/id/metropolitan-district-council/wolverhampton","700341","Acs Business Supplies Limited","SINV00449525","74.07","Stationery","130218990","04/07/2018","Mental Health Assesment & Care Management","Mental Health Assessment & Care Management","R4308"
"Wolverhampton City Council","http://opendatacommunities.org/id/metropolitan-district-council/wolverhampton","700341","Acs Business Supplies Limited","SINV00453955","26.53","Stationery","130221619","25/07/2018","Early Intervention","EIP Locality 4 - Bingley","R4308"
"Wolverhampton City Council","http://opendatacommunities.org/id/metropolitan-district-council/wolverhampton","700341","Acs Business Supplies Limited","SINV00453956","11.98","Stationery","130221620","25/07/2018","Learning Disability Provider","Learning Disabilities Management","R4308"
"Wolverhampton City Council","http://opendatacommunities.org/id/metropolitan-district-council/wolverhampton","700341","Acs Business Supplies Limited","SINV00452760","64.83","Stationery","130220878","25/07/2018","Inclusion Support","Inclusion Support","R4308"
"Wolverhampton City Council","http://opendatacommunities.org/id/metropolitan-district-council/wolverhampton","700341","Acs Business Supplies Limited","SINV00453447","319.80","Stationery","130221245","25/07/2018","Adult Education","Service Wide","R4308"
"Wolverhampton City Council","http://opendatacommunities.org/id/metropolitan-district-council/wolverhampton","700341","Acs Business Supplies Limited","SINV00451696","188.23","Stationery","130220224","18/07/2018","Skills","IMPACT","R4308"
"Wolverhampton City Council","http://opendatacommunities.org/id/metropolitan-district-council/wolverhampton","700341","Acs Business Supplies Limited","SINV00452079","17.97","Stationery","130220482","18/07/2018","Enterprise","Business Engagement","R4308"
"Wolverhampton City Council","http://opendatacommunities.org/id/metropolitan-district-council/wolverhampton","700341","Acs Business Supplies Limited","SINV00452079","10.18","Stationery","130220482","18/07/2018","Enterprise","AIM for the Black Country non shared costs","R4308"
"Wolverhampton City Council","http://opendatacommunities.org/id/metropolitan-district-council/wolverhampton","700341","Acs Business Supplies Limited","SINV00451198","55.94","Stationery","130219842","11/07/2018","Governance Services","Scrutiny","R4308"
"Wolverhampton City Council","http://opendatacommunities.org/id/metropolitan-district-council/wolverhampton","700341","Acs Business Supplies Limited","SINV00451197","116.56","Stationery","130219841","11/07/2018","Independent Living Service","Independent Living Service","R4308"
"Wolverhampton City Council","http://opendatacommunities.org/id/metropolitan-district-council/wolverhampton","700341","Acs Business Supplies Limited","SINV00451195","93.27","Stationery","130219839","11/07/2018","Early Intervention","EIP Locality 3 - Graiseley","R4308"
"Wolverhampton City Council","http://opendatacommunities.org/id/metropolitan-district-council/wolverhampton","700341","Acs Business Supplies Limited","SINV00451192","629.10","Stationery","130219836","11/07/2018","Legal Services","Legal Services","R4308"
"Wolverhampton City Council","http://opendatacommunities.org/id/metropolitan-district-council/wolverhampton","700341","Acs Business Supplies Limited","SINV00451193","155.43","Stationery","130219837","11/07/2018","Bereavement Services","Cemeteries","R4308"
"Wolverhampton City Council","http://opendatacommunities.org/id/metropolitan-district-council/wolverhampton","700341","Acs Business Supplies Limited","SINV00451196","89.99","Stationery","130219840","11/07/2018","ICTS","Document Centre - General","R4308"
"Wolverhampton City Council","http://opendatacommunities.org/id/metropolitan-district-council/wolverhampton","700341","Acs Business Supplies Limited","SINV00450431","57.17","Stationery","130219173","04/07/2018","Legal Services","Legal Services","R4308"
"Wolverhampton City Council","http://opendatacommunities.org/id/metropolitan-district-council/wolverhampton","700341","Acs Business Supplies Limited","SINV00453952","512.29","Stationery","130221616","25/07/2018","Environmental Maintenance","Parks - Ranger Service","R4308"
"Wolverhampton City Council","http://opendatacommunities.org/id/metropolitan-district-council/wolverhampton","700341","Acs Business Supplies Limited","SINV00453449","16.05","Stationery","130221247","25/07/2018","Emergency Duty Team","Emergency Duty Team","R4308"
"Wolverhampton City Council","http://opendatacommunities.org/id/metropolitan-district-council/wolverhampton","700341","Acs Business Supplies Limited","SINV00453450","83.04","Stationery","130221248","25/07/2018","Strategic Director People","Strategic Director People","R4308"
"Wolverhampton City Council","http://opendatacommunities.org/id/metropolitan-district-council/wolverhampton","700341","Acs Business Supplies Limited","SINV00451699","25.23","Stationery","130220227","18/07/2018","Early Intervention","EIP Locality 7 � Low Hill","R4308"
"Wolverhampton City Council","http://opendatacommunities.org/id/metropolitan-district-council/wolverhampton","700341","Acs Business Supplies Limited","SINV00452078","99.90","Stationery","130220481","18/07/2018","Child Protection","CIN/CP Social Work Unit - Area 5","R4308"
"Wolverhampton City Council","http://opendatacommunities.org/id/metropolitan-district-council/wolverhampton","700341","Acs Business Supplies Limited","SINV00451191","112.60","Stationery","130219835","11/07/2018","Customer Services","City Direct","R4308"
"Wolverhampton City Council","http://opendatacommunities.org/id/metropolitan-district-council/wolverhampton","700341","Acs Business Supplies Limited","SINV00449526","4.50","Stationery","130218991","11/07/2018","ICTS","Strategic ICTS (ICT Service Budget)","R4308"
"Wolverhampton City Council","http://opendatacommunities.org/id/metropolitan-district-council/wolverhampton","700341","Acs Business Supplies Limited","SINV00451194","24.99","Stationery","130219838","11/07/2018","Governance Services","Scrutiny","R4308"
"Wolverhampton City Council","http://opendatacommunities.org/id/metropolitan-district-council/wolverhampton","700341","Acs Business Supplies Limited","SINV00449527","63.59","Stationery","130218992","04/07/2018","Early Intervention","EIP Locality 2 � Bilston/Rocket Pool","R4308"
"Wolverhampton City Council","http://opendatacommunities.org/id/metropolitan-district-council/wolverhampton","700341","Acs Business Supplies Limited","SINV00452763","91.77","Stationery","130221052","25/07/2018","Specialist Support","Head of Service Specialist Intensive Support Service","R4308"
"Wolverhampton City Council","http://opendatacommunities.org/id/metropolitan-district-council/wolverhampton","700341","Acs Business Supplies Limited","SINV00452762","118.90","Stationery","130221051","25/07/2018","Revenues & Benefits","Revenues","R4308"
"Wolverhampton City Council","http://opendatacommunities.org/id/metropolitan-district-council/wolverhampton","700341","Acs Business Supplies Limited","SINV00453954","18.00","Stationery","130221618","25/07/2018","Child Protection","CIN/CP Social Work Unit - Area 3","R4308"
"Wolverhampton City Council","http://opendatacommunities.org/id/metropolitan-district-council/wolverhampton","700341","Acs Business Supplies Limited","SINV00453448","52.56","Stationery","130221246","25/07/2018","Strategic Director Place","Business Manager - Place","R4308"
"Wolverhampton City Council","http://opendatacommunities.org/id/metropolitan-district-council/wolverhampton","700341","Acs Business Supplies Limited","SINV00451698","59.83","Stationery","130220226","18/07/2018","Specialist Support","Vulnerable Young Persons Team","R4308"
"Wolverhampton City Council","http://opendatacommunities.org/id/metropolitan-district-council/wolverhampton","700341","Acs Business Supplies Limited","SINV00451695","164.76","Stationery","130220223","18/07/2018","ICTS","Document Centre - General","R4308"
"Wolverhampton City Council","http://opendatacommunities.org/id/metropolitan-district-council/wolverhampton","700341","Acs Business Supplies Limited","SINV00451200","37.98","Stationery","130219844","11/07/2018","Visitor Economy","Bantock - Tea Rooms","R4308"
"Wolverhampton City Council","http://opendatacommunities.org/id/metropolitan-district-council/wolverhampton","700341","Acs Business Supplies Limited","SINV00451201","168.14","Stationery","130219845","11/07/2018","Adult Education","Service Wide","R4308"
"Wolverhampton City Council","http://opendatacommunities.org/id/metropolitan-district-council/wolverhampton","700341","Acs Business Supplies Limited","SINV00451199","5.40","Stationery","130219843","11/07/2018","Specialist Support","Head of Service Specialist Intensive Support Service","R4308"
"Wolverhampton City Council","http://opendatacommunities.org/id/metropolitan-district-council/wolverhampton","700341","Acs Business Supplies Limited","SINV00451202","2.68","Stationery","130219846","11/07/2018","Enterprise","Business Engagement","R4308"
"Wolverhampton City Council","http://opendatacommunities.org/id/metropolitan-district-council/wolverhampton","700341","Acs Business Supplies Limited","SINV00451202","4.60","Stationery","130219846","11/07/2018","Enterprise","Business Engagement","R4308"
"Wolverhampton City Council","http://opendatacommunities.org/id/metropolitan-district-council/wolverhampton","700341","Acs Business Supplies Limited","SINV00448838","75.82","Stationery","130218335","06/07/2018","Child Protection","Childrens with Disabilities Team","R4308"
"Wolverhampton City Council","http://opendatacommunities.org/id/metropolitan-district-council/wolverhampton","700341","Acs Business Supplies Limited","SINV00453957","15.88","Stationery","130221621","25/07/2018","Child Protection","CIN/CP Social Work Unit - Area 5","R4308"
"Wolverhampton City Council","http://opendatacommunities.org/id/metropolitan-district-council/wolverhampton","700341","Acs Business Supplies Limited","SINV00452759","75.55","Stationery","130220877","25/07/2018","Cleaning","Cleaning of Buildings - General","R4308"
"Wolverhampton City Council","http://opendatacommunities.org/id/metropolitan-district-council/wolverhampton","700341","Acs Business Supplies Limited","SINV00452761","120.74","Stationery","130220879","25/07/2018","Adult Education","Service Wide","R4308"
"Wolverhampton City Council","http://opendatacommunities.org/id/metropolitan-district-council/wolverhampton","700341","Acs Business Supplies Limited","SINV00453953","103.96","Stationery","130221617","25/07/2018","Catering","Education Catering - General Overheads","R4308"
"Wolverhampton City Council","http://opendatacommunities.org/id/metropolitan-district-council/wolverhampton","700341","Acs Business Supplies Limited","SINV00451697","24.99","Stationery","130220225","18/07/2018","Governance Services","Scrutiny","R4308"
"Wolverhampton City Council","http://opendatacommunities.org/id/metropolitan-district-council/wolverhampton","700604","P Kitterick","00038","1,360.00","TPP - Maintenance Contractor - General","190480896","06/07/2018","Transportation","Cycling Schemes - Bikeability","R5720"
"Wolverhampton City Council","http://opendatacommunities.org/id/metropolitan-district-council/wolverhampton","700604","P Kitterick","00039","880.00","TPP - Maintenance Contractor - General","190489860","27/07/2018","Transportation","Cycling Schemes - Bikeability","R5720"
"Wolverhampton City Council","http://opendatacommunities.org/id/metropolitan-district-council/wolverhampton","700663","Partisip8/P Sicilia","752","1,410.00","TPP - Maintenance Contractor - General","190489867","25/07/2018","Transportation","Cycling Schemes - Bikeability","R5720"
"Wolverhampton City Council","http://opendatacommunities.org/id/metropolitan-district-council/wolverhampton","700663","Partisip8/P Sicilia","749","2,120.00","TPP - Maintenance Contractor - General","190480899","04/07/2018","Transportation","Cycling Schemes - Bikeability","R5720"
"Wolverhampton City Council","http://opendatacommunities.org/id/metropolitan-district-council/wolverhampton","700663","Partisip8/P Sicilia","752/1","1,030.00","Services - Professional Fees","190489868","25/07/2018","Transportation","Travelwise","R4400"
"Wolverhampton City Council","http://opendatacommunities.org/id/metropolitan-district-council/wolverhampton","700737","Adreeja Chatterjee","2457 ref 731027","850.00","Services - Professional Fees","130221726","13/07/2018","Legal Services","Centralised External Legal Costs","R4400"
"Wolverhampton City Council","http://opendatacommunities.org/id/metropolitan-district-council/wolverhampton","700761","R Millard","000048","110.00","Services - Professional Fees","190489863","25/07/2018","Transportation","Advisory Road Markings and Disabled Bays","R4400"
"Wolverhampton City Council","http://opendatacommunities.org/id/metropolitan-district-council/wolverhampton","700762","R Millington","00041","560.00","TPP - Maintenance Contractor - General","190489864","25/07/2018","Transportation","Cycling Schemes - Bikeability","R5720"
"Wolverhampton City Council","http://opendatacommunities.org/id/metropolitan-district-council/wolverhampton","700762","R Millington","00040","1,080.00","TPP - Maintenance Contractor - General","190480900","04/07/2018","Transportation","Cycling Schemes - Bikeability","R5720"
"Wolverhampton City Council","http://opendatacommunities.org/id/metropolitan-district-council/wolverhampton","700770","Adt Fire And Security PLC","38238152-02","499.88","Fixtures and Fittings - R&M","130222599","25/07/2018","Maintenance Programme","Centralised R&M","R2502"
"Wolverhampton City Council","http://opendatacommunities.org/id/metropolitan-district-council/wolverhampton","700770","Adt Fire And Security PLC","38237328-02","695.79","Fixtures and Fittings - R&M","130222598","25/07/2018","Maintenance Programme","Centralised R&M","R2502"
"Wolverhampton City Council","http://opendatacommunities.org/id/metropolitan-district-council/wolverhampton","700770","Adt Fire And Security PLC","37557708-02","443.48","Fixtures and Fittings - R&M","130223408","25/07/2018","Maintenance Programme","Centralised R&M","R2502"
"Wolverhampton City Council","http://opendatacommunities.org/id/metropolitan-district-council/wolverhampton","700770","Adt Fire And Security PLC","38502057-02","89.00","Fixtures and Fittings - R&M","130222602","25/07/2018","Maintenance Programme","Centralised R&M","R2502"
"Wolverhampton City Council","http://opendatacommunities.org/id/metropolitan-district-council/wolverhampton","700836","Advanced Hygiene Limited","43397","21.96","Cleaning Supplies and Materials","130222500","13/07/2018","Schools","The King�s Church of England School","R2705"
"Wolverhampton City Council","http://opendatacommunities.org/id/metropolitan-district-council/wolverhampton","700836","Advanced Hygiene Limited","43337","186.35","Cleaning Supplies and Materials","130222497","13/07/2018","Schools","The King�s Church of England School","R2705"
"Wolverhampton City Council","http://opendatacommunities.org/id/metropolitan-district-council/wolverhampton","700836","Advanced Hygiene Limited","43460","114.90","Cleaning Supplies and Materials","130221567","06/07/2018","Schools","The King�s Church of England School","R2705"
"Wolverhampton City Council","http://opendatacommunities.org/id/metropolitan-district-council/wolverhampton","700836","Advanced Hygiene Limited","43496","19.80","Training Expenses","130221570","06/07/2018","Schools","The King�s Church of England School","R1650"
"Wolverhampton City Council","http://opendatacommunities.org/id/metropolitan-district-council/wolverhampton","700836","Advanced Hygiene Limited","700836","1,617.44","Cleaning Supplies and Materials","130222496","13/07/2018","Schools","The King�s Church of England School","R2705"
"Wolverhampton City Council","http://opendatacommunities.org/id/metropolitan-district-council/wolverhampton","700836","Advanced Hygiene Limited","43525","114.90","Cleaning Supplies and Materials","130221568","06/07/2018","Schools","The King�s Church of England School","R2705"
"Wolverhampton City Council","http://opendatacommunities.org/id/metropolitan-district-council/wolverhampton","700836","Advanced Hygiene Limited","43526","11.94","Cleaning Supplies and Materials","130221574","06/07/2018","Schools","The King�s Church of England School","R2705"
"Wolverhampton City Council","http://opendatacommunities.org/id/metropolitan-district-council/wolverhampton","700836","Advanced Hygiene Limited","43338","306.63","Cleaning Supplies and Materials","130222498","13/07/2018","Schools","The King�s Church of England School","R2705"
"Wolverhampton City Council","http://opendatacommunities.org/id/metropolitan-district-council/wolverhampton","700836","Advanced Hygiene Limited","43524","19.80","Cleaning Supplies and Materials","130221569","06/07/2018","Schools","The King�s Church of England School","R2705"
"Wolverhampton City Council","http://opendatacommunities.org/id/metropolitan-district-council/wolverhampton","700836","Advanced Hygiene Limited","43466","301.64","Cleaning Supplies and Materials","130221571","06/07/2018","Schools","The King�s Church of England School","R2705"
"Wolverhampton City Council","http://opendatacommunities.org/id/metropolitan-district-council/wolverhampton","700836","Advanced Hygiene Limited","43461","27.90","Cleaning Supplies and Materials","130221572","06/07/2018","Schools","The King�s Church of England School","R2705"
"Wolverhampton City Council","http://opendatacommunities.org/id/metropolitan-district-council/wolverhampton","700836","Advanced Hygiene Limited","43534","964.29","Grounds Maintenance - Contract","130221573","06/07/2018","Schools","The King�s Church of England School","R2075"
"Wolverhampton City Council","http://opendatacommunities.org/id/metropolitan-district-council/wolverhampton","700836","Advanced Hygiene Limited","43396","75.30","Cleaning Supplies and Materials","130222499","13/07/2018","Schools","The King�s Church of England School","R2705"
"Wolverhampton City Council","http://opendatacommunities.org/id/metropolitan-district-council/wolverhampton","700979","Af Blakemore/Blakemore Foodservice","5936983","20.81","Provisions (Not for resale)","130222424","25/07/2018","Older People Provider Services","Blakenhall Resource Centre","R4101"
"Wolverhampton City Council","http://opendatacommunities.org/id/metropolitan-district-council/wolverhampton","700979","Af Blakemore/Blakemore Foodservice","WCC000397","788.69","Provisions (Not for resale)","130221450","25/07/2018","Leisure Services","WV Active Catering - Central","R4101"
"Wolverhampton City Council","http://opendatacommunities.org/id/metropolitan-district-council/wolverhampton","700979","Af Blakemore/Blakemore Foodservice","WCC000397","232.93","Provisions (Not for resale)","130221450","25/07/2018","Leisure Services","WV Active Catering - Central","R4101"
"Wolverhampton City Council","http://opendatacommunities.org/id/metropolitan-district-council/wolverhampton","700979","Af Blakemore/Blakemore Foodservice","WCC000392","739.46","Provisions (Resale)","130221448","25/07/2018","Catering","Meals on Wheels","R4102"
"Wolverhampton City Council","http://opendatacommunities.org/id/metropolitan-district-council/wolverhampton","700979","Af Blakemore/Blakemore Foodservice","WCC000393","69,261.37","Provisions (Resale)","130220881","25/07/2018","Catering","Education Catering - General Overheads","R4102"
"Wolverhampton City Council","http://opendatacommunities.org/id/metropolitan-district-council/wolverhampton","700979","Af Blakemore/Blakemore Foodservice","WCC000390","4,269.14","Provisions (Resale)","130221447","25/07/2018","Catering","Civic Centre Catering","R4102"
"Wolverhampton City Council","http://opendatacommunities.org/id/metropolitan-district-council/wolverhampton","700979","Af Blakemore/Blakemore Foodservice","5779266","328.63","Provisions (Not for resale)","130220338","23/07/2018","Older People Provider Services","Bradley Lodge Resource Centre","R4101"
"Wolverhampton City Council","http://opendatacommunities.org/id/metropolitan-district-council/wolverhampton","700979","Af Blakemore/Blakemore Foodservice","4750514","7.87","Provisions (Not for resale)","130135298","27/07/2018","Older People Provider Services","Bradley Lodge Resource Centre","R4101"
"Wolverhampton City Council","http://opendatacommunities.org/id/metropolitan-district-council/wolverhampton","700979","Af Blakemore/Blakemore Foodservice","5936986","347.35","Provisions (Not for resale)","130222320","25/07/2018","Older People Provider Services","Blakenhall Resource Centre","R4101"
"Wolverhampton City Council","http://opendatacommunities.org/id/metropolitan-district-council/wolverhampton","700979","Af Blakemore/Blakemore Foodservice","WCA000054","1,209.00","Provisions (Not for resale)","130222425","25/07/2018","Leisure Services","WV Active Catering","R4101"
"Wolverhampton City Council","http://opendatacommunities.org/id/metropolitan-district-council/wolverhampton","700979","Af Blakemore/Blakemore Foodservice","WCA000054","474.08","Provisions (Not for resale)","130222425","25/07/2018","Leisure Services","WV Active Catering","R4101"
"Wolverhampton City Council","http://opendatacommunities.org/id/metropolitan-district-council/wolverhampton","700979","Af Blakemore/Blakemore Foodservice","WCC000391","754.45","Provisions (Resale)","130220880","25/07/2018","Catering","Civic Centre Catering","R4102"
"Wolverhampton City Council","http://opendatacommunities.org/id/metropolitan-district-council/wolverhampton","700979","Af Blakemore/Blakemore Foodservice","5918667","23.13","Provisions (Not for resale)","130220340","06/07/2018","Older People Provider Services","Blakenhall Resource Centre","R4101"
"Wolverhampton City Council","http://opendatacommunities.org/id/metropolitan-district-council/wolverhampton","700979","Af Blakemore/Blakemore Foodservice","5945369","39.48","Provisions (Not for resale)","130222795","27/07/2018","Older People Provider Services","Blakenhall Resource Centre","R4101"
"Wolverhampton City Council","http://opendatacommunities.org/id/metropolitan-district-council/wolverhampton","700979","Af Blakemore/Blakemore Foodservice","WCC000396","90.50","Provisions (Not for resale)","130223284","25/07/2018","Leisure Services","WV Active Catering","R4101"
"Wolverhampton City Council","http://opendatacommunities.org/id/metropolitan-district-council/wolverhampton","700979","Af Blakemore/Blakemore Foodservice","WCC000396","138.87","Provisions (Not for resale)","130223284","25/07/2018","Leisure Services","WV Active Catering","R4101"
"Wolverhampton City Council","http://opendatacommunities.org/id/metropolitan-district-council/wolverhampton","700979","Af Blakemore/Blakemore Foodservice","WCC000398","12.67","Provisions (Not for resale)","130220882","25/07/2018","Leisure Services","Bert Williams Leisure Centre Caf�","R4101"
"Wolverhampton City Council","http://opendatacommunities.org/id/metropolitan-district-council/wolverhampton","700979","Af Blakemore/Blakemore Foodservice","WCC000398","491.34","Provisions (Not for resale)","130220882","25/07/2018","Leisure Services","Bert Williams Leisure Centre Caf�","R4101"
"Wolverhampton City Council","http://opendatacommunities.org/id/metropolitan-district-council/wolverhampton","700979","Af Blakemore/Blakemore Foodservice","WCC000394","46,496.53","Provisions (Resale)","130221449","25/07/2018","Catering","Education Catering - General Overheads","R4102"
"Wolverhampton City Council","http://opendatacommunities.org/id/metropolitan-district-council/wolverhampton","700989","S P Nugent","00019","290.00","TPP - Maintenance Contractor - General","190489869","25/07/2018","Transportation","Cycling Schemes - Bikeability","R5720"
"Wolverhampton City Council","http://opendatacommunities.org/id/metropolitan-district-council/wolverhampton","701155","Aidapt Bathrooms Limited","352927","55.00","Equipment - Purchase","130222796","25/07/2018","Independent Living Service","Independent Living Service","R4000"
"Wolverhampton City Council","http://opendatacommunities.org/id/metropolitan-district-council/wolverhampton","701155","Aidapt Bathrooms Limited","352927","99.00","Equipment - Purchase","130222796","25/07/2018","Independent Living Service","Independent Living Service","R4000"
"Wolverhampton City Council","http://opendatacommunities.org/id/metropolitan-district-council/wolverhampton","701155","Aidapt Bathrooms Limited","352927","1,880.00","Equipment - Purchase","130222796","25/07/2018","Independent Living Service","Independent Living Service","R4000"
"Wolverhampton City Council","http://opendatacommunities.org/id/metropolitan-district-council/wolverhampton","701155","Aidapt Bathrooms Limited","347068","99.00","Equipment - Purchase","130218476","04/07/2018","Independent Living Service","Independent Living Service","R4000"
"Wolverhampton City Council","http://opendatacommunities.org/id/metropolitan-district-council/wolverhampton","701155","Aidapt Bathrooms Limited","347068","1,175.00","Equipment - Purchase","130218476","04/07/2018","Independent Living Service","Independent Living Service","R4000"
"Wolverhampton City Council","http://opendatacommunities.org/id/metropolitan-district-council/wolverhampton","701155","Aidapt Bathrooms Limited","349081","88.00","Equipment - R & M","130219847","04/07/2018","Independent Living Service","Independent Living Service","R4003"
"Wolverhampton City Council","http://opendatacommunities.org/id/metropolitan-district-council/wolverhampton","701155","Aidapt Bathrooms Limited","346653","257.40","Equipment - R & M","130218475","04/07/2018","Independent Living Service","Independent Living Service","R4003"
"Wolverhampton City Council","http://opendatacommunities.org/id/metropolitan-district-council/wolverhampton","701265","Airport Express West Midlands Limited","1742","1,600.00","Client Transport","130221730","13/07/2018","Special Educational Needs","Special - Transport","R3042"
"Wolverhampton City Council","http://opendatacommunities.org/id/metropolitan-district-council/wolverhampton","701265","Airport Express West Midlands Limited","1741","1,600.00","Client Transport","130221729","11/07/2018","Special Educational Needs","Special - Transport","R3042"
"Wolverhampton City Council","http://opendatacommunities.org/id/metropolitan-district-council/wolverhampton","701276","Airport-Link","BDW117","2,015.20","Client Transport","130221053","18/07/2018","Special Educational Needs","Special - Transport","R3042"
"Wolverhampton City Council","http://opendatacommunities.org/id/metropolitan-district-council/wolverhampton","701276","Airport-Link","BDW123","1,511.40","Client Transport","130223410","27/07/2018","Special Educational Needs","Special - Transport","R3042"
"Wolverhampton City Council","http://opendatacommunities.org/id/metropolitan-district-council/wolverhampton","701393","Aldersley Church Early Learning Committee","TFT Summer 2018 Inst 2","1,754.35","TPP - Private Nursery Education Funding","190489836","25/07/2018","Early Years","Early Years Entitlement Funding for Disadvantaged 2 Year Olds","R5035"
"Wolverhampton City Council","http://opendatacommunities.org/id/metropolitan-district-council/wolverhampton","701393","Aldersley Church Early Learning Committee","EYPP Summer 2018","286.20","TPP - Private Nursery Education Funding","190489844","25/07/2018","Early Years","Early Years Pupil Premium","R5035"
"Wolverhampton City Council","http://opendatacommunities.org/id/metropolitan-district-council/wolverhampton","701393","Aldersley Church Early Learning Committee","NEF Summer 2018 INST 2","6,732.00","TPP - Private Nursery Education Funding","190489824","25/07/2018","Early Years","Early Years Universal Entitlement for 3 and 4 Year Olds","R5035"
"Wolverhampton City Council","http://opendatacommunities.org/id/metropolitan-district-council/wolverhampton","701394","Aldersley High Sch/Aldersley Acad Tr","SEN Resource Base Summer Term 2018 - Aldersley High School","5,503.72","Grant Payments","190484256","13/07/2018","Central Education","Special Schools Top Up Contingency","R4700"
"Wolverhampton City Council","http://opendatacommunities.org/id/metropolitan-district-council/wolverhampton","701397","Aldridge Trimming","Grant No. 105/18c","22,364.00","Grants paid out to other organisations","190489801","25/07/2018","-","GF - Black Country Gold ERDF Project","C5011"
"Wolverhampton City Council","http://opendatacommunities.org/id/metropolitan-district-council/wolverhampton","701417","All Saints Action Network Limited","EYPP Summer 2018","763.20","TPP - Private Nursery Education Funding","190489844","25/07/2018","Early Years","Early Years Pupil Premium","R5035"
"Wolverhampton City Council","http://opendatacommunities.org/id/metropolitan-district-council/wolverhampton","701417","All Saints Action Network Limited","TFT Summer 2018 Inst 2","2,090.76","TPP - Private Nursery Education Funding","190489836","25/07/2018","Early Years","Early Years Entitlement Funding for Disadvantaged 2 Year Olds","R5035"
"Wolverhampton City Council","http://opendatacommunities.org/id/metropolitan-district-council/wolverhampton","701417","All Saints Action Network Limited","NEF Summer 2018 INST 2","16,830.00","TPP - Private Nursery Education Funding","190489824","25/07/2018","Early Years","Early Years Universal Entitlement for 3 and 4 Year Olds","R5035"
"Wolverhampton City Council","http://opendatacommunities.org/id/metropolitan-district-council/wolverhampton","701417","All Saints Action Network Limited","112269","216.00","Room Hire","130222101","13/07/2018","Headstart","Headstart Hubs","R2201"
"Wolverhampton City Council","http://opendatacommunities.org/id/metropolitan-district-council/wolverhampton","701417","All Saints Action Network Limited","112269","120.00","Catering","130222101","13/07/2018","Headstart","Headstart Hubs","R4100"
"Wolverhampton City Council","http://opendatacommunities.org/id/metropolitan-district-council/wolverhampton","701417","All Saints Action Network Limited","112269","300.00","Equipment - Purchase","130222101","13/07/2018","Headstart","Headstart Hubs","R4000"
"Wolverhampton City Council","http://opendatacommunities.org/id/metropolitan-district-council/wolverhampton","701417","All Saints Action Network Limited","112269","30.00","Training Expenses","130222101","13/07/2018","Headstart","Headstart Hubs","R1650"
"Wolverhampton City Council","http://opendatacommunities.org/id/metropolitan-district-council/wolverhampton","701424","All Security Systems Limited","16808","620.00","Services - Security","130222797","25/07/2018","Maintenance Programme","Centralised R&M","R4405"
"Wolverhampton City Council","http://opendatacommunities.org/id/metropolitan-district-council/wolverhampton","701431","Allglass Systems Limited","319","38,286.00","Construction and Conversion","130220883","11/07/2018","-","Integrated Transport","C1100"
"Wolverhampton City Council","http://opendatacommunities.org/id/metropolitan-district-council/wolverhampton","701431","Allglass Systems Limited","326","6,041.14","Construction and Conversion","130220884","06/07/2018","-","Integrated Transport","C1100"
"Wolverhampton City Council","http://opendatacommunities.org/id/metropolitan-district-council/wolverhampton","701436","Allsigns International Limited","461625","188.34","Equipment - Purchase","130222321","13/07/2018","Facilities Management","i10 Facilities Management","R4000"
"Wolverhampton City Council","http://opendatacommunities.org/id/metropolitan-district-council/wolverhampton","701439","Allstar Business Solutions Limited","E2009921780","81.46","Petrol","190483202","11/07/2018","Fleet Services","Fleet Management","R3000"
"Wolverhampton City Council","http://opendatacommunities.org/id/metropolitan-district-council/wolverhampton","701439","Allstar Business Solutions Limited","E2009916960","1,218.28","Petrol","190483201","11/07/2018","Fleet Services","Fleet Management","R3000"
"Wolverhampton City Council","http://opendatacommunities.org/id/metropolitan-district-council/wolverhampton","701439","Allstar Business Solutions Limited","E2009916960","30.11","Petrol","190483201","11/07/2018","Fleet Services","Fleet Management","R3000"
"Wolverhampton City Council","http://opendatacommunities.org/id/metropolitan-district-council/wolverhampton","701439","Allstar Business Solutions Limited","E2009921788","18.25","Petrol","190483203","11/07/2018","Fleet Services","Fleet Management","R3000"
"Wolverhampton City Council","http://opendatacommunities.org/id/metropolitan-district-council/wolverhampton","701439","Allstar Business Solutions Limited","E2009864242","83.34","Petrol","190483200","11/07/2018","Fleet Services","Fleet Management","R3000"
"Wolverhampton City Council","http://opendatacommunities.org/id/metropolitan-district-council/wolverhampton","701439","Allstar Business Solutions Limited","E2009864242","1.65","Petrol","190483200","11/07/2018","Fleet Services","Fleet Management","R3000"
"Wolverhampton City Council","http://opendatacommunities.org/id/metropolitan-district-council/wolverhampton","701439","Allstar Business Solutions Limited","E2009976498","72.78","Petrol","190488107","25/07/2018","Fleet Services","Fleet Management","R3000"
"Wolverhampton City Council","http://opendatacommunities.org/id/metropolitan-district-council/wolverhampton","701439","Allstar Business Solutions Limited","E2009976498","6.00","Petrol","190488107","25/07/2018","Fleet Services","Fleet Management","R3000"
"Wolverhampton City Council","http://opendatacommunities.org/id/metropolitan-district-council/wolverhampton","701439","Allstar Business Solutions Limited","E2009976498","816.66","Petrol","190488107","25/07/2018","Fleet Services","Fleet Management","R3000"
"Wolverhampton City Council","http://opendatacommunities.org/id/metropolitan-district-council/wolverhampton","701439","Allstar Business Solutions Limited","E2009863136","3.30","Petrol","190483199","11/07/2018","Fleet Services","Fleet Management","R3000"
"Wolverhampton City Council","http://opendatacommunities.org/id/metropolitan-district-council/wolverhampton","701439","Allstar Business Solutions Limited","E2009863136","1,675.14","Petrol","190483199","11/07/2018","Fleet Services","Fleet Management","R3000"
"Wolverhampton City Council","http://opendatacommunities.org/id/metropolitan-district-council/wolverhampton","701439","Allstar Business Solutions Limited","E2009863136","67.18","Petrol","190483199","11/07/2018","Fleet Services","Fleet Management","R3000"
"Wolverhampton City Council","http://opendatacommunities.org/id/metropolitan-district-council/wolverhampton","701446","Alphabiolabs","22964","106.25","Services - Professional Fees","130221054","11/07/2018","Legal Services","Centralised External Legal Costs","R4400"
"Wolverhampton City Council","http://opendatacommunities.org/id/metropolitan-district-council/wolverhampton","701509","Angel Springs Limited (Waterlogic)","4427388","15.00","Provisions (Not for resale)","130223137","25/07/2018","Early Intervention","EIP Locality 7 � Low Hill","R4101"
"Wolverhampton City Council","http://opendatacommunities.org/id/metropolitan-district-council/wolverhampton","701509","Angel Springs Limited (Waterlogic)","4373976","187.68","Provisions (Not for resale)","130220885","04/07/2018","Early Intervention","EIP Locality 8 � Children�s Village","R4101"
"Wolverhampton City Council","http://opendatacommunities.org/id/metropolitan-district-council/wolverhampton","701509","Angel Springs Limited (Waterlogic)","4265958","15.64","Provisions (Not for resale)","130221732","11/07/2018","Early Intervention","EIP Locality 8 � Children�s Village","R4101"
"Wolverhampton City Council","http://opendatacommunities.org/id/metropolitan-district-council/wolverhampton","701509","Angel Springs Limited (Waterlogic)","4318809","15.00","Provisions (Not for resale)","130223135","23/07/2018","Early Intervention","EIP Locality 7 � Low Hill","R4101"
"Wolverhampton City Council","http://opendatacommunities.org/id/metropolitan-district-council/wolverhampton","701509","Angel Springs Limited (Waterlogic)","4200787","22.14","Catering","130221056","04/07/2018","Early Intervention","EIP Locality 1 - Eastfields","R4100"
"Wolverhampton City Council","http://opendatacommunities.org/id/metropolitan-district-council/wolverhampton","701509","Angel Springs Limited (Waterlogic)","4030444","20.29","Catering","130221249","11/07/2018","Early Intervention","EIP Locality 1 - Eastfields","R4100"
"Wolverhampton City Council","http://opendatacommunities.org/id/metropolitan-district-council/wolverhampton","701509","Angel Springs Limited (Waterlogic)","4373934","15.00","Provisions (Not for resale)","130223136","23/07/2018","Early Intervention","EIP Locality 7 � Low Hill","R4101"
"Wolverhampton City Council","http://opendatacommunities.org/id/metropolitan-district-council/wolverhampton","701509","Angel Springs Limited (Waterlogic)","4427393","78.30","Provisions (Not for resale)","130222426","25/07/2018","School Planning & Resources","Education Data Services","R4101"
"Wolverhampton City Council","http://opendatacommunities.org/id/metropolitan-district-council/wolverhampton","701509","Angel Springs Limited (Waterlogic)","3600882","20.29","Provisions (Not for resale)","130221055","04/07/2018","Early Intervention","EIP Locality 1 - Eastfields","R4101"
"Wolverhampton City Council","http://opendatacommunities.org/id/metropolitan-district-council/wolverhampton","701509","Angel Springs Limited (Waterlogic)","4138169","21.28","Catering","130221250","06/07/2018","Early Intervention","EIP Locality 1 - Eastfields","R4100"
"Wolverhampton City Council","http://opendatacommunities.org/id/metropolitan-district-council/wolverhampton","701511","Angelbell Limited T/A Hulleys Frozen","686553","168.81","Provisions (Resale)","130220229","18/07/2018","Visitor Economy","Bantock - Tea Rooms","R4102"
"Wolverhampton City Council","http://opendatacommunities.org/id/metropolitan-district-council/wolverhampton","701511","Angelbell Limited T/A Hulleys Frozen","699379","260.24","Provisions (Resale)","130221057","25/07/2018","Visitor Economy","Bantock - Tea Rooms","R4102"
"Wolverhampton City Council","http://opendatacommunities.org/id/metropolitan-district-council/wolverhampton","701511","Angelbell Limited T/A Hulleys Frozen","664359","278.77","Provisions (Resale)","130218707","04/07/2018","Visitor Economy","Bantock - Tea Rooms","R4102"
"Wolverhampton City Council","http://opendatacommunities.org/id/metropolitan-district-council/wolverhampton","701511","Angelbell Limited T/A Hulleys Frozen","678936","174.93","Provisions (Resale)","130219472","11/07/2018","Visitor Economy","Bantock - Tea Rooms","R4102"
"Wolverhampton City Council","http://opendatacommunities.org/id/metropolitan-district-council/wolverhampton","701512","Anglia Dna Services Limited","6041","124.67","Services - Professional Fees","130221622","11/07/2018","Legal Services","Centralised External Legal Costs","R4400"
"Wolverhampton City Council","http://opendatacommunities.org/id/metropolitan-district-council/wolverhampton","701512","Anglia Dna Services Limited","4201","138.00","Services - Professional Fees","130221251","11/07/2018","Child Protection","Head of Service - CINCP","R4400"
"Wolverhampton City Council","http://opendatacommunities.org/id/metropolitan-district-council/wolverhampton","701512","Anglia Dna Services Limited","5811","394.00","Services - Professional Fees","130219693","04/07/2018","Legal Services","Centralised External Legal Costs","R4400"
"Wolverhampton City Council","http://opendatacommunities.org/id/metropolitan-district-council/wolverhampton","701534","Antalis Limited","7789743","41.52","Stationery","130219183","06/07/2018","ICTS","Document Centre - General","R4308"
"Wolverhampton City Council","http://opendatacommunities.org/id/metropolitan-district-council/wolverhampton","701534","Antalis Limited","7789743","48.03","Stationery","130219183","06/07/2018","ICTS","Document Centre - General","R4308"
"Wolverhampton City Council","http://opendatacommunities.org/id/metropolitan-district-council/wolverhampton","701540","Ants Out Of School Club","EY276610","90.00","TPP - Child Care provided for client","130222323","13/07/2018","Adult Education","24+ Advanced Learning Loan","R5034"
"Wolverhampton City Council","http://opendatacommunities.org/id/metropolitan-district-council/wolverhampton","701540","Ants Out Of School Club","ANTONINAGRZECHNIK052018","90.00","TPP - Child Care provided for client","130223286","25/07/2018","Adult Education","24+ Advanced Learning Loan","R5034"
"Wolverhampton City Council","http://opendatacommunities.org/id/metropolitan-district-council/wolverhampton","701540","Ants Out Of School Club","ANTONINAGRZECHNIK062018","90.00","TPP - Child Care provided for client","130223287","25/07/2018","Adult Education","24+ Advanced Learning Loan","R5034"
"Wolverhampton City Council","http://opendatacommunities.org/id/metropolitan-district-council/wolverhampton","701540","Ants Out Of School Club","ANTONINAGRZECHNIK072018","67.50","TPP - Child Care provided for client","130223288","25/07/2018","Adult Education","24+ Advanced Learning Loan","R5034"
"Wolverhampton City Council","http://opendatacommunities.org/id/metropolitan-district-council/wolverhampton","701545","Apcoa Parking (UK) Limited","267833","58,716.59","TPP - Traffic Management","130218479","25/07/2018","Parking Services","Parking Enforcement","R5050"
"Wolverhampton City Council","http://opendatacommunities.org/id/metropolitan-district-council/wolverhampton","701545","Apcoa Parking (UK) Limited","268474","56,056.08","TPP - Traffic Management","130221623","25/07/2018","Parking Services","Parking Enforcement","R5050"
"Wolverhampton City Council","http://opendatacommunities.org/id/metropolitan-district-council/wolverhampton","701547","Apetito Limited","9002355556","1,072.57","Provisions (Resale)","130219184","04/07/2018","Catering","Meals on Wheels","R4102"
"Wolverhampton City Council","http://opendatacommunities.org/id/metropolitan-district-council/wolverhampton","701547","Apetito Limited","9002352859","1,333.19","Provisions (Resale)","130218875","06/07/2018","Catering","Meals on Wheels","R4102"
"Wolverhampton City Council","http://opendatacommunities.org/id/metropolitan-district-council/wolverhampton","701547","Apetito Limited","9002352859","6.30","Provisions (Resale)","130218875","06/07/2018","Catering","Meals on Wheels","R4102"
"Wolverhampton City Council","http://opendatacommunities.org/id/metropolitan-district-council/wolverhampton","701547","Apetito Limited","9002378116","1,358.36","Provisions (Resale)","130221624","25/07/2018","Catering","Meals on Wheels","R4102"
"Wolverhampton City Council","http://opendatacommunities.org/id/metropolitan-district-council/wolverhampton","701547","Apetito Limited","9002378116","6.37","Provisions (Resale)","130221624","25/07/2018","Catering","Meals on Wheels","R4102"
"Wolverhampton City Council","http://opendatacommunities.org/id/metropolitan-district-council/wolverhampton","701547","Apetito Limited","9002372900","1,212.80","Provisions (Resale)","130220886","18/07/2018","Catering","Meals on Wheels","R4102"
"Wolverhampton City Council","http://opendatacommunities.org/id/metropolitan-district-council/wolverhampton","701547","Apetito Limited","9002362158","1,041.38","Provisions (Resale)","130219694","11/07/2018","Catering","Meals on Wheels","R4102"
"Wolverhampton City Council","http://opendatacommunities.org/id/metropolitan-district-council/wolverhampton","701547","Apetito Limited","9002375658","1,339.87","Provisions (Resale)","130221254","25/07/2018","Catering","Meals on Wheels","R4102"
"Wolverhampton City Council","http://opendatacommunities.org/id/metropolitan-district-council/wolverhampton","701547","Apetito Limited","9002368784","1,079.85","Provisions (Resale)","130220485","18/07/2018","Catering","Meals on Wheels","R4102"
"Wolverhampton City Council","http://opendatacommunities.org/id/metropolitan-district-council/wolverhampton","701547","Apetito Limited","9002366170","1,103.73","Provisions (Resale)","130220230","11/07/2018","Catering","Meals on Wheels","R4102"
"Wolverhampton City Council","http://opendatacommunities.org/id/metropolitan-district-council/wolverhampton","701547","Apetito Limited","9002359524","1,160.99","Provisions (Resale)","130219366","04/07/2018","Catering","Meals on Wheels","R4102"
"Wolverhampton City Council","http://opendatacommunities.org/id/metropolitan-district-council/wolverhampton","701564","AQA Education","20952/189890217","483.70","Exam Expenses (Non-Employee)","130221614","06/07/2018","Schools","The King�s Church of England School","R4630"
"Wolverhampton City Council","http://opendatacommunities.org/id/metropolitan-district-council/wolverhampton","701603","Arnold Clark Finance Limited","HI2373274","18.12","Hire of Vehicles","190482633","11/07/2018","Fleet Services","Fleet Management","R3200"
"Wolverhampton City Council","http://opendatacommunities.org/id/metropolitan-district-council/wolverhampton","701603","Arnold Clark Finance Limited","HI2374069","18.12","Hire of Vehicles","190482640","11/07/2018","Fleet Services","Fleet Management","R3200"
"Wolverhampton City Council","http://opendatacommunities.org/id/metropolitan-district-council/wolverhampton","701603","Arnold Clark Finance Limited","HI2374073","18.12","Hire of Vehicles","190482644","11/07/2018","Fleet Services","Fleet Management","R3200"
"Wolverhampton City Council","http://opendatacommunities.org/id/metropolitan-district-council/wolverhampton","701603","Arnold Clark Finance Limited","HI2371099","139.90","Hire of Vehicles","190482624","11/07/2018","Fleet Services","Fleet Management","R3200"
"Wolverhampton City Council","http://opendatacommunities.org/id/metropolitan-district-council/wolverhampton","701603","Arnold Clark Finance Limited","HI2374070","54.60","Hire of Vehicles","190482641","11/07/2018","Fleet Services","Fleet Management","R3200"
"Wolverhampton City Council","http://opendatacommunities.org/id/metropolitan-district-council/wolverhampton","701603","Arnold Clark Finance Limited","HI2373003","47.87","Hire of Vehicles","190482632","11/07/2018","Fleet Services","Fleet Management","R3200"
"Wolverhampton City Council","http://opendatacommunities.org/id/metropolitan-district-council/wolverhampton","701603","Arnold Clark Finance Limited","HI2374085","68.25","Hire of Vehicles","190482653","11/07/2018","Fleet Services","Fleet Management","R3200"
"Wolverhampton City Council","http://opendatacommunities.org/id/metropolitan-district-council/wolverhampton","701603","Arnold Clark Finance Limited","HI2374081","15.15","Hire of Vehicles","190482651","11/07/2018","Fleet Services","Fleet Management","R3200"
"Wolverhampton City Council","http://opendatacommunities.org/id/metropolitan-district-council/wolverhampton","701603","Arnold Clark Finance Limited","HI2376053","125.64","Hire of Vehicles","190482658","11/07/2018","Fleet Services","Fleet Management","R3200"
"Wolverhampton City Council","http://opendatacommunities.org/id/metropolitan-district-council/wolverhampton","701603","Arnold Clark Finance Limited","HI2371600","151.25","Hire of Vehicles","190482629","11/07/2018","Fleet Services","Fleet Management","R3200"
"Wolverhampton City Council","http://opendatacommunities.org/id/metropolitan-district-council/wolverhampton","701603","Arnold Clark Finance Limited","HI2371040","139.90","Hire of Vehicles","190482617","11/07/2018","Fleet Services","Fleet Management","R3200"
"Wolverhampton City Council","http://opendatacommunities.org/id/metropolitan-district-council/wolverhampton","701603","Arnold Clark Finance Limited","HI2371014","36.24","Hire of Vehicles","190482614","11/07/2018","Fleet Services","Fleet Management","R3200"
"Wolverhampton City Council","http://opendatacommunities.org/id/metropolitan-district-council/wolverhampton","701603","Arnold Clark Finance Limited","HI2379780","68.25","Hire of Vehicles","190486315","23/07/2018","Fleet Services","Fleet Management","R3200"
"Wolverhampton City Council","http://opendatacommunities.org/id/metropolitan-district-council/wolverhampton","701603","Arnold Clark Finance Limited","HI2382005","43.65","Hire of Vehicles","190486321","23/07/2018","Fleet Services","Fleet Management","R3200"
"Wolverhampton City Council","http://opendatacommunities.org/id/metropolitan-district-council/wolverhampton","701603","Arnold Clark Finance Limited","HI2381461","23.25","Hire of Vehicles","190486320","23/07/2018","Fleet Services","Fleet Management","R3200"
"Wolverhampton City Council","http://opendatacommunities.org/id/metropolitan-district-council/wolverhampton","701603","Arnold Clark Finance Limited","HI2377781","18.12","Hire of Vehicles","190486312","23/07/2018","Fleet Services","Fleet Management","R3200"
"Wolverhampton City Council","http://opendatacommunities.org/id/metropolitan-district-council/wolverhampton","701603","Arnold Clark Finance Limited","HI2384283","18.12","Hire of Vehicles","190486326","23/07/2018","Fleet Services","Fleet Management","R3200"
"Wolverhampton City Council","http://opendatacommunities.org/id/metropolitan-district-council/wolverhampton","701603","Arnold Clark Finance Limited","HI2384915","139.90","Hire of Vehicles","190486329","23/07/2018","Fleet Services","Fleet Management","R3200"
"Wolverhampton City Council","http://opendatacommunities.org/id/metropolitan-district-council/wolverhampton","701603","Arnold Clark Finance Limited","HI2374079","68.25","Hire of Vehicles","190482649","11/07/2018","Fleet Services","Fleet Management","R3200"
"Wolverhampton City Council","http://opendatacommunities.org/id/metropolitan-district-council/wolverhampton","701603","Arnold Clark Finance Limited","HI2374086","139.90","Hire of Vehicles","190482654","11/07/2018","Fleet Services","Fleet Management","R3200"
"Wolverhampton City Council","http://opendatacommunities.org/id/metropolitan-district-council/wolverhampton","701603","Arnold Clark Finance Limited","HI2371598","151.25","Hire of Vehicles","190482628","11/07/2018","Fleet Services","Fleet Management","R3200"
"Wolverhampton City Council","http://opendatacommunities.org/id/metropolitan-district-council/wolverhampton","701603","Arnold Clark Finance Limited","HI2375613","125.64","Hire of Vehicles","190482657","11/07/2018","Fleet Services","Fleet Management","R3200"
"Wolverhampton City Council","http://opendatacommunities.org/id/metropolitan-district-council/wolverhampton","701603","Arnold Clark Finance Limited","HI2371601","30.30","Hire of Vehicles","190482630","11/07/2018","Fleet Services","Fleet Management","R3200"
"Wolverhampton City Council","http://opendatacommunities.org/id/metropolitan-district-council/wolverhampton","701603","Arnold Clark Finance Limited","HI2365539","47.38","Hire of Vehicles","190482613","11/07/2018","Fleet Services","Fleet Management","R3200"
"Wolverhampton City Council","http://opendatacommunities.org/id/metropolitan-district-council/wolverhampton","701603","Arnold Clark Finance Limited","HI2371051","18.12","Hire of Vehicles","190482619","11/07/2018","Fleet Services","Fleet Management","R3200"
"Wolverhampton City Council","http://opendatacommunities.org/id/metropolitan-district-council/wolverhampton","701603","Arnold Clark Finance Limited","HI2374066","18.12","Hire of Vehicles","190482639","11/07/2018","Fleet Services","Fleet Management","R3200"
"Wolverhampton City Council","http://opendatacommunities.org/id/metropolitan-district-council/wolverhampton","701603","Arnold Clark Finance Limited","HI2371076","111.92","Hire of Vehicles","190482621","11/07/2018","Fleet Services","Fleet Management","R3200"
"Wolverhampton City Council","http://opendatacommunities.org/id/metropolitan-district-council/wolverhampton","701603","Arnold Clark Finance Limited","HI2374072","279.80","Hire of Vehicles","190482643","11/07/2018","Fleet Services","Fleet Management","R3200"
"Wolverhampton City Council","http://opendatacommunities.org/id/metropolitan-district-council/wolverhampton","701603","Arnold Clark Finance Limited","HI2371082","32.50","Hire of Vehicles","190482622","11/07/2018","Fleet Services","Fleet Management","R3200"
"Wolverhampton City Council","http://opendatacommunities.org/id/metropolitan-district-council/wolverhampton","701603","Arnold Clark Finance Limited","HI2374065","54.60","Hire of Vehicles","190482638","11/07/2018","Fleet Services","Fleet Management","R3200"
"Wolverhampton City Council","http://opendatacommunities.org/id/metropolitan-district-council/wolverhampton","701603","Arnold Clark Finance Limited","HI2377333","18.12","Hire of Vehicles","190486308","23/07/2018","Fleet Services","Fleet Management","R3200"
"Wolverhampton City Council","http://opendatacommunities.org/id/metropolitan-district-council/wolverhampton","701603","Arnold Clark Finance Limited","HI2382843","18.12","Hire of Vehicles","190486323","23/07/2018","Fleet Services","Fleet Management","R3200"
"Wolverhampton City Council","http://opendatacommunities.org/id/metropolitan-district-council/wolverhampton","701603","Arnold Clark Finance Limited","HI2384897","139.90","Hire of Vehicles","190486328","23/07/2018","Fleet Services","Fleet Management","R3200"
"Wolverhampton City Council","http://opendatacommunities.org/id/metropolitan-district-council/wolverhampton","701603","Arnold Clark Finance Limited","HI2377779","43.65","Hire of Vehicles","190486311","23/07/2018","Fleet Services","Fleet Management","R3200"
"Wolverhampton City Council","http://opendatacommunities.org/id/metropolitan-district-council/wolverhampton","701603","Arnold Clark Finance Limited","HI2380993","80.54","Hire of Vehicles","190486318","23/07/2018","Fleet Services","Fleet Management","R3200"
"Wolverhampton City Council","http://opendatacommunities.org/id/metropolitan-district-council/wolverhampton","701603","Arnold Clark Finance Limited","HI2378080","41.88","Hire of Vehicles","190486314","23/07/2018","Fleet Services","Fleet Management","R3200"
"Wolverhampton City Council","http://opendatacommunities.org/id/metropolitan-district-council/wolverhampton","701603","Arnold Clark Finance Limited","HI2373945","18.12","Hire of Vehicles","190482635","11/07/2018","Fleet Services","Fleet Management","R3200"
"Wolverhampton City Council","http://opendatacommunities.org/id/metropolitan-district-council/wolverhampton","701603","Arnold Clark Finance Limited","HI2373442","139.90","Hire of Vehicles","190482634","11/07/2018","Fleet Services","Fleet Management","R3200"
"Wolverhampton City Council","http://opendatacommunities.org/id/metropolitan-district-council/wolverhampton","701603","Arnold Clark Finance Limited","HI2374077","41.30","Hire of Vehicles","190482647","11/07/2018","Fleet Services","Fleet Management","R3200"
"Wolverhampton City Council","http://opendatacommunities.org/id/metropolitan-district-council/wolverhampton","701603","Arnold Clark Finance Limited","HI2371090","139.90","Hire of Vehicles","190482623","11/07/2018","Fleet Services","Fleet Management","R3200"
"Wolverhampton City Council","http://opendatacommunities.org/id/metropolitan-district-council/wolverhampton","701603","Arnold Clark Finance Limited","HI2374074","18.12","Hire of Vehicles","190482645","11/07/2018","Fleet Services","Fleet Management","R3200"
"Wolverhampton City Council","http://opendatacommunities.org/id/metropolitan-district-council/wolverhampton","701603","Arnold Clark Finance Limited","HI2374071","54.60","Hire of Vehicles","190482642","11/07/2018","Fleet Services","Fleet Management","R3200"
"Wolverhampton City Council","http://opendatacommunities.org/id/metropolitan-district-council/wolverhampton","701603","Arnold Clark Finance Limited","HI2374078","60.90","Hire of Vehicles","190482648","11/07/2018","Fleet Services","Fleet Management","R3200"
"Wolverhampton City Council","http://opendatacommunities.org/id/metropolitan-district-council/wolverhampton","701603","Arnold Clark Finance Limited","HI2374080","23.25","Hire of Vehicles","190482650","11/07/2018","Fleet Services","Fleet Management","R3200"
"Wolverhampton City Council","http://opendatacommunities.org/id/metropolitan-district-council/wolverhampton","701603","Arnold Clark Finance Limited","HI2376054","125.64","Hire of Vehicles","190482659","11/07/2018","Fleet Services","Fleet Management","R3200"
"Wolverhampton City Council","http://opendatacommunities.org/id/metropolitan-district-council/wolverhampton","701603","Arnold Clark Finance Limited","HI2371586","15.15","Hire of Vehicles","190482626","11/07/2018","Fleet Services","Fleet Management","R3200"
"Wolverhampton City Council","http://opendatacommunities.org/id/metropolitan-district-council/wolverhampton","701603","Arnold Clark Finance Limited","HI2371586","34.71","Hire of Vehicles","190482626","11/07/2018","Fleet Services","Fleet Management","R3200"
"Wolverhampton City Council","http://opendatacommunities.org/id/metropolitan-district-council/wolverhampton","701603","Arnold Clark Finance Limited","HI2374819","68.25","Hire of Vehicles","190482656","11/07/2018","Fleet Services","Fleet Management","R3200"
"Wolverhampton City Council","http://opendatacommunities.org/id/metropolitan-district-council/wolverhampton","701603","Arnold Clark Finance Limited","HI2371027","111.92","Hire of Vehicles","190482616","11/07/2018","Fleet Services","Fleet Management","R3200"
"Wolverhampton City Council","http://opendatacommunities.org/id/metropolitan-district-council/wolverhampton","701603","Arnold Clark Finance Limited","HI2374082","27.30","Hire of Vehicles","190486307","23/07/2018","Fleet Services","Fleet Management","R3200"
"Wolverhampton City Council","http://opendatacommunities.org/id/metropolitan-district-council/wolverhampton","701603","Arnold Clark Finance Limited","HI2377777","139.90","Hire of Vehicles","190486310","23/07/2018","Fleet Services","Fleet Management","R3200"
"Wolverhampton City Council","http://opendatacommunities.org/id/metropolitan-district-council/wolverhampton","701603","Arnold Clark Finance Limited","HI2379797","18.12","Hire of Vehicles","190486316","23/07/2018","Fleet Services","Fleet Management","R3200"
"Wolverhampton City Council","http://opendatacommunities.org/id/metropolitan-district-council/wolverhampton","701603","Arnold Clark Finance Limited","HI2382840","68.25","Hire of Vehicles","190486322","23/07/2018","Fleet Services","Fleet Management","R3200"
"Wolverhampton City Council","http://opendatacommunities.org/id/metropolitan-district-council/wolverhampton","701603","Arnold Clark Finance Limited","HI2384282","54.36","Hire of Vehicles","190486325","23/07/2018","Fleet Services","Fleet Management","R3200"
"Wolverhampton City Council","http://opendatacommunities.org/id/metropolitan-district-council/wolverhampton","701603","Arnold Clark Finance Limited","HI2384917","139.90","Hire of Vehicles","190486330","23/07/2018","Fleet Services","Fleet Management","R3200"
"Wolverhampton City Council","http://opendatacommunities.org/id/metropolitan-district-council/wolverhampton","701603","Arnold Clark Finance Limited","HI2374064","54.60","Hire of Vehicles","190482637","11/07/2018","Fleet Services","Fleet Management","R3200"
"Wolverhampton City Council","http://opendatacommunities.org/id/metropolitan-district-council/wolverhampton","701603","Arnold Clark Finance Limited","HI2374062","18.12","Hire of Vehicles","190482636","11/07/2018","Fleet Services","Fleet Management","R3200"
"Wolverhampton City Council","http://opendatacommunities.org/id/metropolitan-district-council/wolverhampton","701603","Arnold Clark Finance Limited","HI2371045","83.94","Hire of Vehicles","190482618","11/07/2018","Fleet Services","Fleet Management","R3200"
"Wolverhampton City Council","http://opendatacommunities.org/id/metropolitan-district-council/wolverhampton","701603","Arnold Clark Finance Limited","HI2374076","46.50","Hire of Vehicles","190482646","11/07/2018","Fleet Services","Fleet Management","R3200"
"Wolverhampton City Council","http://opendatacommunities.org/id/metropolitan-district-council/wolverhampton","701603","Arnold Clark Finance Limited","HI2371115","68.25","Hire of Vehicles","190482625","11/07/2018","Fleet Services","Fleet Management","R3200"
"Wolverhampton City Council","http://opendatacommunities.org/id/metropolitan-district-council/wolverhampton","701603","Arnold Clark Finance Limited","HI2371072","111.92","Hire of Vehicles","190482620","11/07/2018","Fleet Services","Fleet Management","R3200"
"Wolverhampton City Council","http://opendatacommunities.org/id/metropolitan-district-council/wolverhampton","701603","Arnold Clark Finance Limited","HI2371592","151.25","Hire of Vehicles","190482627","11/07/2018","Fleet Services","Fleet Management","R3200"
"Wolverhampton City Council","http://opendatacommunities.org/id/metropolitan-district-council/wolverhampton","701603","Arnold Clark Finance Limited","HI2374087","24.36","Hire of Vehicles","190482655","11/07/2018","Fleet Services","Fleet Management","R3200"
"Wolverhampton City Council","http://opendatacommunities.org/id/metropolitan-district-council/wolverhampton","701603","Arnold Clark Finance Limited","HI2374084","139.90","Hire of Vehicles","190482652","11/07/2018","Fleet Services","Fleet Management","R3200"
"Wolverhampton City Council","http://opendatacommunities.org/id/metropolitan-district-council/wolverhampton","701603","Arnold Clark Finance Limited","HI2371605","41.88","Hire of Vehicles","190482631","11/07/2018","Fleet Services","Fleet Management","R3200"
"Wolverhampton City Council","http://opendatacommunities.org/id/metropolitan-district-council/wolverhampton","701603","Arnold Clark Finance Limited","HI2356602","18.12","Hire of Vehicles","190482612","11/07/2018","Fleet Services","Fleet Management","R3200"
"Wolverhampton City Council","http://opendatacommunities.org/id/metropolitan-district-council/wolverhampton","701603","Arnold Clark Finance Limited","HI2371020","33.25","Hire of Vehicles","190482615","11/07/2018","Fleet Services","Fleet Management","R3200"
"Wolverhampton City Council","http://opendatacommunities.org/id/metropolitan-district-council/wolverhampton","701603","Arnold Clark Finance Limited","HI2382844","21.12","Hire of Vehicles","190486324","23/07/2018","Fleet Services","Fleet Management","R3200"
"Wolverhampton City Council","http://opendatacommunities.org/id/metropolitan-district-council/wolverhampton","701603","Arnold Clark Finance Limited","HI2380931","18.12","Hire of Vehicles","190486317","23/07/2018","Fleet Services","Fleet Management","R3200"
"Wolverhampton City Council","http://opendatacommunities.org/id/metropolitan-district-council/wolverhampton","701603","Arnold Clark Finance Limited","HI2384891","139.90","Hire of Vehicles","190486327","23/07/2018","Fleet Services","Fleet Management","R3200"
"Wolverhampton City Council","http://opendatacommunities.org/id/metropolitan-district-council/wolverhampton","701603","Arnold Clark Finance Limited","HI2381310","83.76","Hire of Vehicles","190486319","23/07/2018","Fleet Services","Fleet Management","R3200"
"Wolverhampton City Council","http://opendatacommunities.org/id/metropolitan-district-council/wolverhampton","701603","Arnold Clark Finance Limited","HI2378079","41.88","Hire of Vehicles","190486313","23/07/2018","Fleet Services","Fleet Management","R3200"
"Wolverhampton City Council","http://opendatacommunities.org/id/metropolitan-district-council/wolverhampton","701603","Arnold Clark Finance Limited","HI2377776","139.90","Hire of Vehicles","190486309","23/07/2018","Fleet Services","Fleet Management","R3200"
"Wolverhampton City Council","http://opendatacommunities.org/id/metropolitan-district-council/wolverhampton","701613","Arthur Brett (Catering) Limited","ID1037090","24.11","Provisions (Resale)","130221255","11/07/2018","Older People Provider Services","Blakenhall Resource Centre","R4102"
"Wolverhampton City Council","http://opendatacommunities.org/id/metropolitan-district-council/wolverhampton","701613","Arthur Brett (Catering) Limited","ID1037987","57.36","Provisions (Resale)","130221625","11/07/2018","Visitor Economy","Art Gallery Tea Room","R4102"
"Wolverhampton City Council","http://opendatacommunities.org/id/metropolitan-district-council/wolverhampton","701613","Arthur Brett (Catering) Limited","ID1036407","108.44","Provisions (Resale)","130220747","04/07/2018","Visitor Economy","Bantock - Tea Rooms","R4102"
"Wolverhampton City Council","http://opendatacommunities.org/id/metropolitan-district-council/wolverhampton","701613","Arthur Brett (Catering) Limited","3006183","34,444.00","Provisions (Resale)","130223527","27/07/2018","Catering","Education Catering - General Overheads","R4102"
"Wolverhampton City Council","http://opendatacommunities.org/id/metropolitan-district-council/wolverhampton","701613","Arthur Brett (Catering) Limited","ID1041194","1.44","Provisions (Resale)","130222804","25/07/2018","Visitor Economy","Bantock - Tea Rooms","R4102"
"Wolverhampton City Council","http://opendatacommunities.org/id/metropolitan-district-council/wolverhampton","701613","Arthur Brett (Catering) Limited","ID1038608","11.90","Provisions (Resale)","130222431","18/07/2018","Visitor Economy","Bantock - Tea Rooms","R4102"
"Wolverhampton City Council","http://opendatacommunities.org/id/metropolitan-district-council/wolverhampton","701613","Arthur Brett (Catering) Limited","ID1039117","120.96","Provisions (Resale)","130222433","18/07/2018","Visitor Economy","Bantock - Tea Rooms","R4102"
"Wolverhampton City Council","http://opendatacommunities.org/id/metropolitan-district-council/wolverhampton","701613","Arthur Brett (Catering) Limited","ID1040187","93.99","Provisions (Resale)","130222514","18/07/2018","Visitor Economy","Art Gallery Tea Room","R4102"
"Wolverhampton City Council","http://opendatacommunities.org/id/metropolitan-district-council/wolverhampton","701613","Arthur Brett (Catering) Limited","ID1038179","110.36","Provisions (Resale)","130221734","11/07/2018","Visitor Economy","Bantock - Tea Rooms","R4102"
"Wolverhampton City Council","http://opendatacommunities.org/id/metropolitan-district-council/wolverhampton","701613","Arthur Brett (Catering) Limited","ID1035919","18.94","Provisions (Resale)","130220488","04/07/2018","Adult Education","Caf�","R4102"
"Wolverhampton City Council","http://opendatacommunities.org/id/metropolitan-district-council/wolverhampton","701613","Arthur Brett (Catering) Limited","3006182","214.20","Provisions (Resale)","130222429","13/07/2018","Leisure Services","Bert Williams Leisure Centre Caf�","R4102"
"Wolverhampton City Council","http://opendatacommunities.org/id/metropolitan-district-council/wolverhampton","701613","Arthur Brett (Catering) Limited","ID1040530","77.03","Provisions (Resale)","130222516","23/07/2018","Visitor Economy","Bantock - Tea Rooms","R4102"
"Wolverhampton City Council","http://opendatacommunities.org/id/metropolitan-district-council/wolverhampton","701613","Arthur Brett (Catering) Limited","3006185","151.79","Provisions (Resale)","130223529","27/07/2018","Catering","Meals on Wheels","R4102"
"Wolverhampton City Council","http://opendatacommunities.org/id/metropolitan-district-council/wolverhampton","701613","Arthur Brett (Catering) Limited","3105184","1,061.04","Provisions (Resale)","130223672","27/07/2018","Catering","Civic Centre Catering","R4102"
"Wolverhampton City Council","http://opendatacommunities.org/id/metropolitan-district-council/wolverhampton","701613","Arthur Brett (Catering) Limited","ID1040957","21.63","Provisions (Resale)","130222802","25/07/2018","Older People Provider Services","Blakenhall Resource Centre","R4102"
"Wolverhampton City Council","http://opendatacommunities.org/id/metropolitan-district-council/wolverhampton","701613","Arthur Brett (Catering) Limited","ID1039639","15.57","Provisions (Resale)","130222105","18/07/2018","Visitor Economy","Bantock - Tea Rooms","R4102"
"Wolverhampton City Council","http://opendatacommunities.org/id/metropolitan-district-council/wolverhampton","701613","Arthur Brett (Catering) Limited","ID1039049","26.69","Provisions (Resale)","130222432","18/07/2018","Older People Provider Services","Blakenhall Resource Centre","R4102"
"Wolverhampton City Council","http://opendatacommunities.org/id/metropolitan-district-council/wolverhampton","701613","Arthur Brett (Catering) Limited","ID1035149","17.87","Provisions (Resale)","130220344","04/07/2018","Older People Provider Services","Blakenhall Resource Centre","R4102"
"Wolverhampton City Council","http://opendatacommunities.org/id/metropolitan-district-council/wolverhampton","701613","Arthur Brett (Catering) Limited","ID1037253","67.39","Provisions (Resale)","130221059","11/07/2018","Visitor Economy","Bantock - Tea Rooms","R4102"
"Wolverhampton City Council","http://opendatacommunities.org/id/metropolitan-district-council/wolverhampton","701613","Arthur Brett (Catering) Limited","ID1036694","121.20","Provisions (Resale)","130220887","06/07/2018","Visitor Economy","Bantock - Tea Rooms","R4102"
"Wolverhampton City Council","http://opendatacommunities.org/id/metropolitan-district-council/wolverhampton","701613","Arthur Brett (Catering) Limited","3105183","27,310.50","Provisions (Resale)","130223671","27/07/2018","Catering","Education Catering - General Overheads","R4102"
"Wolverhampton City Council","http://opendatacommunities.org/id/metropolitan-district-council/wolverhampton","701613","Arthur Brett (Catering) Limited","ID1040989","105.93","Provisions (Resale)","130222803","25/07/2018","Visitor Economy","Bantock - Tea Rooms","R4102"
"Wolverhampton City Council","http://opendatacommunities.org/id/metropolitan-district-council/wolverhampton","701613","Arthur Brett (Catering) Limited","ID1038564","93.70","Provisions (Resale)","130222430","18/07/2018","Visitor Economy","Bantock - Tea Rooms","R4102"
"Wolverhampton City Council","http://opendatacommunities.org/id/metropolitan-district-council/wolverhampton","701613","Arthur Brett (Catering) Limited","ID1039119","39.68","Provisions (Resale)","130221982","18/07/2018","Visitor Economy","Art Gallery Tea Room","R4102"
"Wolverhampton City Council","http://opendatacommunities.org/id/metropolitan-district-council/wolverhampton","701613","Arthur Brett (Catering) Limited","ID1037137","77.56","Provisions (Resale)","130221058","11/07/2018","Visitor Economy","Art Gallery Tea Room","R4102"
"Wolverhampton City Council","http://opendatacommunities.org/id/metropolitan-district-council/wolverhampton","701613","Arthur Brett (Catering) Limited","3006181","76.08","Provisions (Resale)","130222428","13/07/2018","Leisure Services","WV Active Catering","R4102"
"Wolverhampton City Council","http://opendatacommunities.org/id/metropolitan-district-council/wolverhampton","701613","Arthur Brett (Catering) Limited","ID1035391","102.86","Provisions (Resale)","130220345","04/07/2018","Visitor Economy","Bantock - Tea Rooms","R4102"
"Wolverhampton City Council","http://opendatacommunities.org/id/metropolitan-district-council/wolverhampton","701613","Arthur Brett (Catering) Limited","ID1036279","46.24","Provisions (Resale)","130220746","04/07/2018","Visitor Economy","Art Gallery Tea Room","R4102"
"Wolverhampton City Council","http://opendatacommunities.org/id/metropolitan-district-council/wolverhampton","701613","Arthur Brett (Catering) Limited","ID1031142","12.03","Provisions (Resale)","130218879","06/07/2018","Adult Education","Caf�","R4102"
"Wolverhampton City Council","http://opendatacommunities.org/id/metropolitan-district-council/wolverhampton","701613","Arthur Brett (Catering) Limited","3006184","1,436.47","Provisions (Resale)","130223528","27/07/2018","Catering","Civic Centre Catering","R4102"
"Wolverhampton City Council","http://opendatacommunities.org/id/metropolitan-district-council/wolverhampton","701613","Arthur Brett (Catering) Limited","3105185","146.98","Provisions (Resale)","130223673","27/07/2018","Catering","Meals on Wheels","R4102"
"Wolverhampton City Council","http://opendatacommunities.org/id/metropolitan-district-council/wolverhampton","701613","Arthur Brett (Catering) Limited","ID1041581","82.39","Provisions (Resale)","130222993","25/07/2018","Visitor Economy","Art Gallery Tea Room","R4102"
"Wolverhampton City Council","http://opendatacommunities.org/id/metropolitan-district-council/wolverhampton","701613","Arthur Brett (Catering) Limited","ID1040239","90.68","Provisions (Resale)","130222515","18/07/2018","Visitor Economy","Bantock - Tea Rooms","R4102"
"Wolverhampton City Council","http://opendatacommunities.org/id/metropolitan-district-council/wolverhampton","701626","Asan Management Services Limited","112240","72.00","Room Hire","130221983","11/07/2018","Public Service Reform","Workforce Development","R2201"
"Wolverhampton City Council","http://opendatacommunities.org/id/metropolitan-district-council/wolverhampton","701626","Asan Management Services Limited","112240","70.00","Catering","130221983","11/07/2018","Public Service Reform","Workforce Development","R4100"
"Wolverhampton City Council","http://opendatacommunities.org/id/metropolitan-district-council/wolverhampton","701626","Asan Management Services Limited","112251","72.00","Room Hire","130218483","06/07/2018","Community Safety","SWP - Infrastructure","R2201"
"Wolverhampton City Council","http://opendatacommunities.org/id/metropolitan-district-council/wolverhampton","701656","Askews & Holts Library Services Limited","5739855","156.36","Books","130219190","04/07/2018","Local Economy","Global Budgets","R4309"
"Wolverhampton City Council","http://opendatacommunities.org/id/metropolitan-district-council/wolverhampton","701656","Askews & Holts Library Services Limited","5750715","0.08","Books","130219196","04/07/2018","Local Economy","Global Budgets","R4309"
"Wolverhampton City Council","http://opendatacommunities.org/id/metropolitan-district-council/wolverhampton","701656","Askews & Holts Library Services Limited","5750715","61.64","Books","130219196","04/07/2018","Local Economy","Global Budgets","R4309"
"Wolverhampton City Council","http://opendatacommunities.org/id/metropolitan-district-council/wolverhampton","701656","Askews & Holts Library Services Limited","5752899","540.29","Books","130219859","13/07/2018","Local Economy","Global Budgets","R4309"
"Wolverhampton City Council","http://opendatacommunities.org/id/metropolitan-district-council/wolverhampton","701656","Askews & Holts Library Services Limited","5747389","412.95","Books","130219195","06/07/2018","Local Economy","Global Budgets","R4309"
"Wolverhampton City Council","http://opendatacommunities.org/id/metropolitan-district-council/wolverhampton","701656","Askews & Holts Library Services Limited","5768129","35.52","Books","130221062","25/07/2018","Local Economy","Global Budgets","R4309"
"Wolverhampton City Council","http://opendatacommunities.org/id/metropolitan-district-council/wolverhampton","701656","Askews & Holts Library Services Limited","5757085","516.94","Books","130220237","18/07/2018","Local Economy","Global Budgets","R4309"
"Wolverhampton City Council","http://opendatacommunities.org/id/metropolitan-district-council/wolverhampton","701656","Askews & Holts Library Services Limited","5704188","308.92","Books","130220236","04/07/2018","Local Economy","Global Budgets","R4309"
"Wolverhampton City Council","http://opendatacommunities.org/id/metropolitan-district-council/wolverhampton","701656","Askews & Holts Library Services Limited","5739854","25.39","Books","130219189","04/07/2018","Local Economy","Global Budgets","R4309"
"Wolverhampton City Council","http://opendatacommunities.org/id/metropolitan-district-council/wolverhampton","701656","Askews & Holts Library Services Limited","5752901","5.65","Books","130219861","13/07/2018","Local Economy","Global Budgets","R4309"
"Wolverhampton City Council","http://opendatacommunities.org/id/metropolitan-district-council/wolverhampton","701656","Askews & Holts Library Services Limited","5759988","152.18","Books","130219862","13/07/2018","Local Economy","Global Budgets","R4309"
"Wolverhampton City Council","http://opendatacommunities.org/id/metropolitan-district-council/wolverhampton","701656","Askews & Holts Library Services Limited","5747388","523.27","Books","130219194","06/07/2018","Local Economy","Global Budgets","R4309"
"Wolverhampton City Council","http://opendatacommunities.org/id/metropolitan-district-council/wolverhampton","701656","Askews & Holts Library Services Limited","5768511","59.18","Books","130221735","25/07/2018","Local Economy","Global Budgets","R4309"
"Wolverhampton City Council","http://opendatacommunities.org/id/metropolitan-district-council/wolverhampton","701656","Askews & Holts Library Services Limited","5759775","36.12","Books","130220238","18/07/2018","Local Economy","Global Budgets","R4309"
"Wolverhampton City Council","http://opendatacommunities.org/id/metropolitan-district-council/wolverhampton","701656","Askews & Holts Library Services Limited","160318E","-4.63","Books","130220347","18/07/2018","Local Economy","Global Budgets","R4309"
"Wolverhampton City Council","http://opendatacommunities.org/id/metropolitan-district-council/wolverhampton","701656","Askews & Holts Library Services Limited","160318E","-0.44","Books","130220347","18/07/2018","Local Economy","Global Budgets","R4309"
"Wolverhampton City Council","http://opendatacommunities.org/id/metropolitan-district-council/wolverhampton","701656","Askews & Holts Library Services Limited","5763490","154.22","Books","130221060","25/07/2018","Local Economy","Global Budgets","R4309"
"Wolverhampton City Council","http://opendatacommunities.org/id/metropolitan-district-council/wolverhampton","701656","Askews & Holts Library Services Limited","5759777","30.73","Books","130220240","18/07/2018","Local Economy","Global Budgets","R4309"
"Wolverhampton City Council","http://opendatacommunities.org/id/metropolitan-district-council/wolverhampton","701656","Askews & Holts Library Services Limited","5752900","176.97","Books","130219860","13/07/2018","Local Economy","Global Budgets","R4309"
"Wolverhampton City Council","http://opendatacommunities.org/id/metropolitan-district-council/wolverhampton","701656","Askews & Holts Library Services Limited","5750713","12.39","Books","130219476","11/07/2018","Local Economy","Global Budgets","R4309"
"Wolverhampton City Council","http://opendatacommunities.org/id/metropolitan-district-council/wolverhampton","701656","Askews & Holts Library Services Limited","5701988","187.83","Books","130220235","04/07/2018","Local Economy","Global Budgets","R4309"
"Wolverhampton City Council","http://opendatacommunities.org/id/metropolitan-district-council/wolverhampton","701656","Askews & Holts Library Services Limited","5695722","350.78","Books","130220233","04/07/2018","Local Economy","Global Budgets","R4309"
"Wolverhampton City Council","http://opendatacommunities.org/id/metropolitan-district-council/wolverhampton","701656","Askews & Holts Library Services Limited","5745519","7.97","Books","130219192","06/07/2018","Local Economy","Global Budgets","R4309"
"Wolverhampton City Council","http://opendatacommunities.org/id/metropolitan-district-council/wolverhampton","701656","Askews & Holts Library Services Limited","5764957","160.84","Books","130221061","25/07/2018","Local Economy","Global Budgets","R4309"
"Wolverhampton City Council","http://opendatacommunities.org/id/metropolitan-district-council/wolverhampton","701656","Askews & Holts Library Services Limited","5759776","520.87","Books","130220239","18/07/2018","Local Economy","Global Budgets","R4309"
"Wolverhampton City Council","http://opendatacommunities.org/id/metropolitan-district-council/wolverhampton","701656","Askews & Holts Library Services Limited","5701987","614.77","Books","130220234","04/07/2018","Local Economy","Global Budgets","R4309"
"Wolverhampton City Council","http://opendatacommunities.org/id/metropolitan-district-council/wolverhampton","701656","Askews & Holts Library Services Limited","5741596","318.12","Books","130219191","04/07/2018","Local Economy","Global Budgets","R4309"
"Wolverhampton City Council","http://opendatacommunities.org/id/metropolitan-district-council/wolverhampton","701656","Askews & Holts Library Services Limited","5750714","231.73","Books","130219477","11/07/2018","Local Economy","Global Budgets","R4309"
"Wolverhampton City Council","http://opendatacommunities.org/id/metropolitan-district-council/wolverhampton","701656","Askews & Holts Library Services Limited","5745520","260.98","Books","130219193","06/07/2018","Local Economy","Global Budgets","R4309"
"Wolverhampton City Council","http://opendatacommunities.org/id/metropolitan-district-council/wolverhampton","701672","Assn Of Electoral Administrators","23336","80.00","Training Expenses","130222994","23/07/2018","Public Service Reform","Electoral Registration","R1650"
"Wolverhampton City Council","http://opendatacommunities.org/id/metropolitan-district-council/wolverhampton","701680","Associated  Radio Taxi�s","ART-17-009742","1,322.21","Client Transport","130222329","13/07/2018","Special Educational Needs","Primary - Transport","R3042"
"Wolverhampton City Council","http://opendatacommunities.org/id/metropolitan-district-council/wolverhampton","701680","Associated  Radio Taxi�s","ART-17-009738","926.25","Client Transport","130222325","13/07/2018","Special Educational Needs","Secondary- Transport","R3042"
"Wolverhampton City Council","http://opendatacommunities.org/id/metropolitan-district-council/wolverhampton","701680","Associated  Radio Taxi�s","ART-17-009741","1,072.40","Client Transport","130222328","13/07/2018","Special Educational Needs","Primary - Transport","R3042"
"Wolverhampton City Council","http://opendatacommunities.org/id/metropolitan-district-council/wolverhampton","701680","Associated  Radio Taxi�s","ART-17-009739","1,105.20","Client Transport","130222326","13/07/2018","Special Educational Needs","Secondary- Transport","R3042"
"Wolverhampton City Council","http://opendatacommunities.org/id/metropolitan-district-council/wolverhampton","701680","Associated  Radio Taxi�s","ART-17-009743","1,209.16","Client Transport","130222330","13/07/2018","Special Educational Needs","Secondary- Transport","R3042"
"Wolverhampton City Council","http://opendatacommunities.org/id/metropolitan-district-council/wolverhampton","701680","Associated  Radio Taxi�s","ART-17-009740","999.40","Client Transport","130222327","13/07/2018","Special Educational Needs","Special - Transport","R3042"
"Wolverhampton City Council","http://opendatacommunities.org/id/metropolitan-district-council/wolverhampton","701682","Association Of Adult Education And","INV-0595","120.00","Training Expenses","130220618","25/07/2018","Adult Education","Staff Development","R1650"
"Wolverhampton City Council","http://opendatacommunities.org/id/metropolitan-district-council/wolverhampton","701707","Aurora Graphics & Displays Limited","57605","64.50","Printing","130221063","06/07/2018","ICTS","Document Centre - General","R4300"
"Wolverhampton City Council","http://opendatacommunities.org/id/metropolitan-district-council/wolverhampton","701707","Aurora Graphics & Displays Limited","56700","197.00","Printing","130221736","11/07/2018","ICTS","Document Centre - General","R4300"
"Wolverhampton City Council","http://opendatacommunities.org/id/metropolitan-district-council/wolverhampton","701712","Pelican Rouge Coffee Solutions Limited","180074970","1,852.08","Equipment - R & M","130223677","27/07/2018","Catering","Education Catering - General Overheads","R4003"
"Wolverhampton City Council","http://opendatacommunities.org/id/metropolitan-district-council/wolverhampton","701712","Pelican Rouge Coffee Solutions Limited","180112000","2,090.88","Equipment - R & M","130223141","23/07/2018","Leisure Services","WV Active Catering","R4003"
"Wolverhampton City Council","http://opendatacommunities.org/id/metropolitan-district-council/wolverhampton","701712","Pelican Rouge Coffee Solutions Limited","180051088","99.61","Equipment - Hire","130204528","18/07/2018","Public Service Reform","Members Expenses","R4001"
"Wolverhampton City Council","http://opendatacommunities.org/id/metropolitan-district-council/wolverhampton","701712","Pelican Rouge Coffee Solutions Limited","180061320","99.61","Equipment - Hire","130206915","18/07/2018","Public Service Reform","Members Expenses","R4001"
"Wolverhampton City Council","http://opendatacommunities.org/id/metropolitan-district-council/wolverhampton","701712","Pelican Rouge Coffee Solutions Limited","180091720","2,093.04","Equipment - R & M","130223140","23/07/2018","Leisure Services","WV Active Catering","R4003"
"Wolverhampton City Council","http://opendatacommunities.org/id/metropolitan-district-council/wolverhampton","701712","Pelican Rouge Coffee Solutions Limited","180102059","1,100.00","Equipment - Purchase","130222415","18/07/2018","Corporate Asset Management","Future Space Decant Area","R4000"
"Wolverhampton City Council","http://opendatacommunities.org/id/metropolitan-district-council/wolverhampton","701712","Pelican Rouge Coffee Solutions Limited","180104238","-199.22","Equipment - Hire","130217802","18/07/2018","Public Service Reform","Members Expenses","R4001"
"Wolverhampton City Council","http://opendatacommunities.org/id/metropolitan-district-council/wolverhampton","701771","Back Care Solutions Limited","62385","71.00","Equipment - Purchase","130219478","11/07/2018","Community Financial Support","Welfare Rights","R4000"
"Wolverhampton City Council","http://opendatacommunities.org/id/metropolitan-district-council/wolverhampton","701771","Back Care Solutions Limited","62385","80.00","Equipment - Purchase","130219478","11/07/2018","Community Financial Support","Welfare Rights","R4000"
"Wolverhampton City Council","http://opendatacommunities.org/id/metropolitan-district-council/wolverhampton","701771","Back Care Solutions Limited","62385","42.95","Equipment - Purchase","130219478","11/07/2018","Community Financial Support","Welfare Rights","R4000"
"Wolverhampton City Council","http://opendatacommunities.org/id/metropolitan-district-council/wolverhampton","701771","Back Care Solutions Limited","62385","79.00","Equipment - Purchase","130219478","11/07/2018","Community Financial Support","Welfare Rights","R4000"
"Wolverhampton City Council","http://opendatacommunities.org/id/metropolitan-district-council/wolverhampton","701784","Bains Supersave Limited","APNEWS050","45.60","Books","130221257","04/07/2018","Local Economy","Global Budgets","R4309"
"Wolverhampton City Council","http://opendatacommunities.org/id/metropolitan-district-council/wolverhampton","701787","Baker Hall Limited","WV/06/18","1,540.00","Services - Consultants","130221737","25/07/2018","Planning","Building Consultancy","R4404"
"Wolverhampton City Council","http://opendatacommunities.org/id/metropolitan-district-council/wolverhampton","701787","Baker Hall Limited","WV/05/18","1,365.00","Services - Consultants","130218495","20/07/2018","Planning","Building Consultancy","R4404"
"Wolverhampton City Council","http://opendatacommunities.org/id/metropolitan-district-council/wolverhampton","701787","Baker Hall Limited","WV/04/18 - credit correction","-1,365.00","Services - Consultants","130218868","20/07/2018","Planning","Building Consultancy","R4404"
"Wolverhampton City Council","http://opendatacommunities.org/id/metropolitan-district-council/wolverhampton","701794","Banking Automation Limited","SC-075039","-647.40","Computing - Maint Agreements","130223280","27/07/2018","ICTS","Strategic ICTS (ICT Service Budget)","R4534"
"Wolverhampton City Council","http://opendatacommunities.org/id/metropolitan-district-council/wolverhampton","701794","Banking Automation Limited","SI-081358","5,694.00","Computing - Maint Agreements","130223281","27/07/2018","ICTS","Strategic ICTS (ICT Service Budget)","R4534"
"Wolverhampton City Council","http://opendatacommunities.org/id/metropolitan-district-council/wolverhampton","701797","Barber Of Sheffield Limited","620809","39.99","Equipment - Purchase","130220015","11/07/2018","Bereavement Services","Coroners","R4000"
"Wolverhampton City Council","http://opendatacommunities.org/id/metropolitan-district-council/wolverhampton","701797","Barber Of Sheffield Limited","621857","935.96","Equipment - Purchase","130220016","18/07/2018","Bereavement Services","Coroners","R4000"
"Wolverhampton City Council","http://opendatacommunities.org/id/metropolitan-district-council/wolverhampton","701797","Barber Of Sheffield Limited","626212","64.10","Equipment - Purchase","130221738","27/07/2018","Bereavement Services","Coroners","R4000"
"Wolverhampton City Council","http://opendatacommunities.org/id/metropolitan-district-council/wolverhampton","701817","Base 25","3368","4,050.00","Training Expenses","130219866","23/07/2018","Skills","IMPACT","R1650"
"Wolverhampton City Council","http://opendatacommunities.org/id/metropolitan-district-council/wolverhampton","701817","Base 25","3529","465.00","Section 17","130220748","23/07/2018","Child Protection","CIN/CP Social Work Unit - Area 8","R6403"
"Wolverhampton City Council","http://opendatacommunities.org/id/metropolitan-district-council/wolverhampton","701817","Base 25","3541","2,500.00","Services - Professional Fees","130220018","23/07/2018","Skills","IMPACT","R4400"
"Wolverhampton City Council","http://opendatacommunities.org/id/metropolitan-district-council/wolverhampton","701817","Base 25","125","-13,335.00","TPP - Public Health Contracts","130219680","23/07/2018","Contracts","Public Mental Health","R5060"
"Wolverhampton City Council","http://opendatacommunities.org/id/metropolitan-district-council/wolverhampton","701817","Base 25","3243","3,807.00","Training Expenses","130219865","23/07/2018","Skills","IMPACT","R1650"
"Wolverhampton City Council","http://opendatacommunities.org/id/metropolitan-district-council/wolverhampton","701817","Base 25","3512","481.00","Training Expenses","130219867","23/07/2018","Skills","IMPACT","R1650"
"Wolverhampton City Council","http://opendatacommunities.org/id/metropolitan-district-council/wolverhampton","701832","Bbp.Security Services & Training Limited","278WCC270618","2,800.00","Services - Security","130220888","04/07/2018","Facilities Management","Management of Vacant Properties","R4405"
"Wolverhampton City Council","http://opendatacommunities.org/id/metropolitan-district-council/wolverhampton","701832","Bbp.Security Services & Training Limited","004AEW270618","4,557.00","Services - Security","130221739","11/07/2018","Adult Education","Service Wide","R4405"
"Wolverhampton City Council","http://opendatacommunities.org/id/metropolitan-district-council/wolverhampton","701832","Bbp.Security Services & Training Limited","004AEW270618","5,218.50","Services - Security","130221739","11/07/2018","Adult Education","Service Wide","R4405"
"Wolverhampton City Council","http://opendatacommunities.org/id/metropolitan-district-council/wolverhampton","701832","Bbp.Security Services & Training Limited","073WCC260117","650.00","Services - Professional Fees","130155020","27/07/2018","City Development","Strategic Disposals","R4400"
"Wolverhampton City Council","http://opendatacommunities.org/id/metropolitan-district-council/wolverhampton","701832","Bbp.Security Services & Training Limited","280WCC060718","92.00","Services - Security","130222111","13/07/2018","Visitor Economy","Outdoor Events Admin","R4405"
"Wolverhampton City Council","http://opendatacommunities.org/id/metropolitan-district-council/wolverhampton","701832","Bbp.Security Services & Training Limited","293WCC130718","162.50","Services - Security","130223003","23/07/2018","Markets","Bilston Market and Licensed Operations","R4405"
"Wolverhampton City Council","http://opendatacommunities.org/id/metropolitan-district-council/wolverhampton","701832","Bbp.Security Services & Training Limited","290WCC130718","4,300.00","Services - Security","130223000","23/07/2018","Markets","Bilston Market and Licensed Operations","R4405"
"Wolverhampton City Council","http://opendatacommunities.org/id/metropolitan-district-council/wolverhampton","701832","Bbp.Security Services & Training Limited","282WCC060718","1,240.00","Services - Security","130222113","13/07/2018","Early Intervention","EIP Locality 2 � Bilston/Rocket Pool","R4405"
"Wolverhampton City Council","http://opendatacommunities.org/id/metropolitan-district-council/wolverhampton","701832","Bbp.Security Services & Training Limited","291WCC130718","2,305.88","Services - Security","130223001","23/07/2018","Markets","Wolverhampton Indoor and Open Market","R4405"
"Wolverhampton City Council","http://opendatacommunities.org/id/metropolitan-district-council/wolverhampton","701832","Bbp.Security Services & Training Limited","288WCC130718","3,381.00","Services - Security","130222998","23/07/2018","Markets","Wholesale Market Facilities Management","R4405"
"Wolverhampton City Council","http://opendatacommunities.org/id/metropolitan-district-council/wolverhampton","701832","Bbp.Security Services & Training Limited","292WCC130718","186.00","Services - Security","130223002","25/07/2018","Markets","Bilston Market and Licensed Operations","R4405"
"Wolverhampton City Council","http://opendatacommunities.org/id/metropolitan-district-council/wolverhampton","701832","Bbp.Security Services & Training Limited","274WCC260618","4,611.75","Services - Security","130220619","04/07/2018","Cleaning","Schools Cleaning","R4405"
"Wolverhampton City Council","http://opendatacommunities.org/id/metropolitan-district-council/wolverhampton","701832","Bbp.Security Services & Training Limited","281WCC060718","840.00","Services - Security","130222112","13/07/2018","Bereavement Services","Cemeteries","R4405"
"Wolverhampton City Council","http://opendatacommunities.org/id/metropolitan-district-council/wolverhampton","701832","Bbp.Security Services & Training Limited","283WCC130718","430.50","Services - Security","130222805","23/07/2018","Facilities Management","Civic Centre","R4405"
"Wolverhampton City Council","http://opendatacommunities.org/id/metropolitan-district-council/wolverhampton","701832","Bbp.Security Services & Training Limited","289WCC130718","2,989.38","Services - Security","130222999","23/07/2018","Licensing","Private Hire Vehicles","R4405"
"Wolverhampton City Council","http://opendatacommunities.org/id/metropolitan-district-council/wolverhampton","701832","Bbp.Security Services & Training Limited","287WCC130718","2,205.00","Services - Security","130222997","23/07/2018","Facilities Management","i10 Facilities Management","R4405"
"Wolverhampton City Council","http://opendatacommunities.org/id/metropolitan-district-council/wolverhampton","701832","Bbp.Security Services & Training Limited","276WCC260618","157.50","Construction and Conversion","130220621","04/07/2018","-","GF - Blue Network","C1100"
"Wolverhampton City Council","http://opendatacommunities.org/id/metropolitan-district-council/wolverhampton","701832","Bbp.Security Services & Training Limited","275WCC260618","69.00","Services - Security","130220620","04/07/2018","Leisure Services","Aldersley Leisure Village","R4405"
"Wolverhampton City Council","http://opendatacommunities.org/id/metropolitan-district-council/wolverhampton","701832","Bbp.Security Services & Training Limited","005AEW270618","5,386.50","Services - Security","130221740","11/07/2018","Adult Education","Service Wide","R4405"
"Wolverhampton City Council","http://opendatacommunities.org/id/metropolitan-district-council/wolverhampton","701832","Bbp.Security Services & Training Limited","284WCC130718","231.00","Services - Security","130222806","23/07/2018","Maintenance Programme","Asset Management Team","R4405"
"Wolverhampton City Council","http://opendatacommunities.org/id/metropolitan-district-council/wolverhampton","701832","Bbp.Security Services & Training Limited","285WCC130718","462.00","Services - Security","130222995","23/07/2018","Maintenance Programme","Asset Management Team","R4405"
"Wolverhampton City Council","http://opendatacommunities.org/id/metropolitan-district-council/wolverhampton","701832","Bbp.Security Services & Training Limited","286WCC130718","2,163.00","Services - Security","130222996","23/07/2018","Facilities Management","Civic Centre","R4405"
"Wolverhampton City Council","http://opendatacommunities.org/id/metropolitan-district-council/wolverhampton","701832","Bbp.Security Services & Training Limited","279WCC060718","4,777.50","Services - Security","130222110","13/07/2018","Facilities Management","Management of Vacant Properties","R4405"
"Wolverhampton City Council","http://opendatacommunities.org/id/metropolitan-district-council/wolverhampton","701835","BCC Mac T/A St Michaels Catholic","St Michael�s Catholic Academy Early Years Summer Term 2018-19","31,410.90","Grant Payments","190484556","13/07/2018","Central Education","Academy Early years","R4700"
"Wolverhampton City Council","http://opendatacommunities.org/id/metropolitan-district-council/wolverhampton","701835","BCC Mac T/A St Michaels Catholic","EYPP Summer 2018","763.20","TPP - Private Nursery Education Funding","190489844","25/07/2018","Early Years","Early Years Pupil Premium","R5035"
"Wolverhampton City Council","http://opendatacommunities.org/id/metropolitan-district-council/wolverhampton","701835","BCC Mac T/A St Michaels Catholic","St Michael�s Catholic Academy Early Years Payment Autumn Term Initerim 2018-19","10,792.76","Grant Payments","190484580","13/07/2018","Central Education","Academy Early years","R4700"
"Wolverhampton City Council","http://opendatacommunities.org/id/metropolitan-district-council/wolverhampton","701837","SS Peter & Paul Cath. Primary & Nursery","SS Peter & Paul Catholic Academy Early Years Payment Autumn Term Initerim 2018-19","15,199.28","Grant Payments","190484581","13/07/2018","Central Education","Academy Early years","R4700"
"Wolverhampton City Council","http://opendatacommunities.org/id/metropolitan-district-council/wolverhampton","701837","SS Peter & Paul Cath. Primary & Nursery","SS Peter & Paul Catholic Academy Early Years Payment Summer Term 2018-19","31,408.20","Grant Payments","190484557","13/07/2018","Central Education","Academy Early years","R4700"
"Wolverhampton City Council","http://opendatacommunities.org/id/metropolitan-district-council/wolverhampton","701837","SS Peter & Paul Cath. Primary & Nursery","EYPP Summer 2018","572.40","TPP - Private Nursery Education Funding","190489844","25/07/2018","Early Years","Early Years Pupil Premium","R5035"
"Wolverhampton City Council","http://opendatacommunities.org/id/metropolitan-district-council/wolverhampton","701848","Bearing Man Limited","745606-00","139.40","Equipment - Purchase","190483185","11/07/2018","Fleet Services","Fleet Management","R4000"
"Wolverhampton City Council","http://opendatacommunities.org/id/metropolitan-district-council/wolverhampton","701880","Berendsen UK Limited","SN2888198","180.24","Protective Clothing","190481486","06/07/2018","Fleet Services","Fleet Management","R4200"
"Wolverhampton City Council","http://opendatacommunities.org/id/metropolitan-district-council/wolverhampton","701884","Berrybrook Primary School Fund A/C","TFT Summer 2018 Inst 2","4,904.64","TPP - Private Nursery Education Funding","190489836","25/07/2018","Early Years","Early Years Entitlement Funding for Disadvantaged 2 Year Olds","R5035"
"Wolverhampton City Council","http://opendatacommunities.org/id/metropolitan-district-council/wolverhampton","701884","Berrybrook Primary School Fund A/C","EYPP Summer 2018","2,003.40","TPP - Private Nursery Education Funding","190489844","25/07/2018","Early Years","Early Years Pupil Premium","R5035"
"Wolverhampton City Council","http://opendatacommunities.org/id/metropolitan-district-council/wolverhampton","701885","Berrymans Lace Mawer","2395027","2,873.38","Insurance - General","130218881","04/07/2018","Audit Services","Legal Liability","R4962"
"Wolverhampton City Council","http://opendatacommunities.org/id/metropolitan-district-council/wolverhampton","701885","Berrymans Lace Mawer","2376719","1,557.50","Insurance - General","130212352","27/07/2018","Audit Services","Legal Liability","R4962"
"Wolverhampton City Council","http://opendatacommunities.org/id/metropolitan-district-council/wolverhampton","701905","Bevan Brittan Llp","01514636 - Blue Bill 4/7/18","850.00","Services - Professional Fees","130221445","04/07/2018","Legal Services","Centralised External Legal Costs","R4400"
"Wolverhampton City Council","http://opendatacommunities.org/id/metropolitan-district-council/wolverhampton","701944","Birmingham CC - General Fund","9002500405","7,745.55","Comms - Postage","130219484","11/07/2018","ICTS","Document Centre - General","R4503"
"Wolverhampton City Council","http://opendatacommunities.org/id/metropolitan-district-council/wolverhampton","701944","Birmingham CC - General Fund","9002511177","115.00","TPP - Payments to Local Authorities","130223533","27/07/2018","Public Service Reform","Coroners Service","R5100"
"Wolverhampton City Council","http://opendatacommunities.org/id/metropolitan-district-council/wolverhampton","701963","Black Country Consortium Limited","1900","38,000.00","Services - Professional Fees","130222807","25/07/2018","Land and Property Investment Support","Land Property Investment Fund Management Costs","R4400"
"Wolverhampton City Council","http://opendatacommunities.org/id/metropolitan-district-council/wolverhampton","701970","Black Country Society","BCS/AHR/18/WTON.ALS","12.50","Subscriptions","130222331","13/07/2018","Visitor Economy","Archives","R4701"
"Wolverhampton City Council","http://opendatacommunities.org/id/metropolitan-district-council/wolverhampton","701983","Blakenhall Neighbourhood Nursery","NEF Summer 2018 INST 2","20,743.00","TPP - Private Nursery Education Funding","190489824","25/07/2018","Early Years","Early Years Universal Entitlement for 3 and 4 Year Olds","R5035"
"Wolverhampton City Council","http://opendatacommunities.org/id/metropolitan-district-council/wolverhampton","701983","Blakenhall Neighbourhood Nursery","EYPP Summer 2018","95.40","TPP - Private Nursery Education Funding","190489844","25/07/2018","Early Years","Early Years Pupil Premium","R5035"
"Wolverhampton City Council","http://opendatacommunities.org/id/metropolitan-district-council/wolverhampton","701983","Blakenhall Neighbourhood Nursery","TFT Summer 2018 Inst 2","6,177.96","TPP - Private Nursery Education Funding","190489836","25/07/2018","Early Years","Early Years Entitlement Funding for Disadvantaged 2 Year Olds","R5035"
"Wolverhampton City Council","http://opendatacommunities.org/id/metropolitan-district-council/wolverhampton","701994","Blue Diamond Stl","0000237680","171.36","Materials","130221259","18/07/2018","Operation & Maintenance of Existing Network","Condition Surveys","R4007"
"Wolverhampton City Council","http://opendatacommunities.org/id/metropolitan-district-council/wolverhampton","701999","Blue Mountain Foods Limited","7719","1,051.00","Provisions (Resale)","130218347","06/07/2018","Catering","Meals on Wheels","R4102"
"Wolverhampton City Council","http://opendatacommunities.org/id/metropolitan-district-council/wolverhampton","701999","Blue Mountain Foods Limited","7720","152.00","Provisions (Resale)","130218348","06/07/2018","Catering","Education Catering - General Overheads","R4102"
"Wolverhampton City Council","http://opendatacommunities.org/id/metropolitan-district-council/wolverhampton","702015","Boc Limited","3047779640","89.35","Gas","130221260","25/07/2018","Visitor Economy","The Little Civic","R2101"
"Wolverhampton City Council","http://opendatacommunities.org/id/metropolitan-district-council/wolverhampton","702020","Boningale Nurseries","369992","120.00","Materials","130223681","27/07/2018","Bereavement Services","Bereavement services - Grounds maintenance","R4007"
"Wolverhampton City Council","http://opendatacommunities.org/id/metropolitan-district-council/wolverhampton","702041","Boulton Travel Limited","BTWCTW12.10","2,600.00","Client Transport","130221265","25/07/2018","Special Educational Needs","Special - Transport","R3042"
"Wolverhampton City Council","http://opendatacommunities.org/id/metropolitan-district-council/wolverhampton","702041","Boulton Travel Limited","BTWCBM5.32","1,800.00","Client Transport","130221263","25/07/2018","Special Educational Needs","Special - Transport","R3042"
"Wolverhampton City Council","http://opendatacommunities.org/id/metropolitan-district-council/wolverhampton","702041","Boulton Travel Limited","BTHS34","60.00","Client Transport","130221261","25/07/2018","Headstart","B-Safe","R3042"
"Wolverhampton City Council","http://opendatacommunities.org/id/metropolitan-district-council/wolverhampton","702041","Boulton Travel Limited","BTWCTW13.6","1,900.00","Client Transport","130221741","25/07/2018","Special Educational Needs","Special - Transport","R3042"
"Wolverhampton City Council","http://opendatacommunities.org/id/metropolitan-district-council/wolverhampton","702041","Boulton Travel Limited","BTHS32","200.00","Client Transport","130218497","04/07/2018","Headstart","B-Safe","R3042"
"Wolverhampton City Council","http://opendatacommunities.org/id/metropolitan-district-council/wolverhampton","702041","Boulton Travel Limited","BTWCBM3.32","1,800.00","Client Transport","130223534","25/07/2018","Special Educational Needs","Special - Transport","R3042"
"Wolverhampton City Council","http://opendatacommunities.org/id/metropolitan-district-council/wolverhampton","702041","Boulton Travel Limited","BTWCGPT3.7","1,700.00","Client Transport","130221264","25/07/2018","Special Educational Needs","Special - Transport","R3042"
"Wolverhampton City Council","http://opendatacommunities.org/id/metropolitan-district-council/wolverhampton","702041","Boulton Travel Limited","BTWCBM1.32","1,900.00","Client Transport","130221262","25/07/2018","Special Educational Needs","Special - Transport","R3042"
"Wolverhampton City Council","http://opendatacommunities.org/id/metropolitan-district-council/wolverhampton","702041","Boulton Travel Limited","BTWCBM4.32","1,800.00","Client Transport","130223535","25/07/2018","Special Educational Needs","Special - Transport","R3042"
"Wolverhampton City Council","http://opendatacommunities.org/id/metropolitan-district-council/wolverhampton","702046","Bourne Leisure Limited","BR00267156","-195.83","TPP - Short Breaks","130201323","11/07/2018","Carer Support","Carers Support","R5500"
"Wolverhampton City Council","http://opendatacommunities.org/id/metropolitan-district-council/wolverhampton","702046","Bourne Leisure Limited","BR00267156","195.83","TPP - Short Breaks","130201323","11/07/2018","Carer Support","Carers Support","R5500"
"Wolverhampton City Council","http://opendatacommunities.org/id/metropolitan-district-council/wolverhampton","702046","Bourne Leisure Limited","BR00267156","-195.83","TPP - Short Breaks","130201323","11/07/2018","Carer Support","Carers Support","R5500"
"Wolverhampton City Council","http://opendatacommunities.org/id/metropolitan-district-council/wolverhampton","702046","Bourne Leisure Limited","BR00278384","8.33","TPP - Short Breaks","130216177","11/07/2018","Carer Support","Carers Support","R5500"
"Wolverhampton City Council","http://opendatacommunities.org/id/metropolitan-district-council/wolverhampton","702046","Bourne Leisure Limited","BR00275043","54.17","TPP - Short Breaks","130216174","11/07/2018","Carer Support","Carers Support","R5500"
"Wolverhampton City Council","http://opendatacommunities.org/id/metropolitan-district-council/wolverhampton","702046","Bourne Leisure Limited","BR00277836","33.88","TPP - Short Breaks","130220491","11/07/2018","Carer Support","Carers Support","R5500"
"Wolverhampton City Council","http://opendatacommunities.org/id/metropolitan-district-council/wolverhampton","702046","Bourne Leisure Limited","BR00275934","16.66","TPP - Short Breaks","130216175","11/07/2018","Carer Support","Carers Support","R5500"
"Wolverhampton City Council","http://opendatacommunities.org/id/metropolitan-district-council/wolverhampton","702046","Bourne Leisure Limited","BR00275944","29.21","TPP - Short Breaks","130216176","11/07/2018","Carer Support","Carers Support","R5500"
"Wolverhampton City Council","http://opendatacommunities.org/id/metropolitan-district-council/wolverhampton","702046","Bourne Leisure Limited","BR00268485","70.84","TPP - Short Breaks","130216173","11/07/2018","Carer Support","Carers Support","R5500"
"Wolverhampton City Council","http://opendatacommunities.org/id/metropolitan-district-council/wolverhampton","702071","Brakes/Brakefresh","9269327093","296.05","Provisions (Resale)","130219198","06/07/2018","Catering","Civic Centre Catering","R4102"
"Wolverhampton City Council","http://opendatacommunities.org/id/metropolitan-district-council/wolverhampton","702071","Brakes/Brakefresh","82884624","57.58","Provisions (Resale)","130219197","06/07/2018","Catering","Civic Centre Catering","R4102"
"Wolverhampton City Council","http://opendatacommunities.org/id/metropolitan-district-council/wolverhampton","702072","Brand Creative Media Limited","1191","280.00","Marketing \ Non-staff advertising","130221064","25/07/2018","Standards and Vulnerable Pupils","SENDIASS","R4317"
"Wolverhampton City Council","http://opendatacommunities.org/id/metropolitan-district-council/wolverhampton","702093","Briggs Equiptment UK Limited","107187838","413.33","Hire of Vehicles","130220028","11/07/2018","Markets","Wholesale Market Facilities Management","R3200"
"Wolverhampton City Council","http://opendatacommunities.org/id/metropolitan-district-council/wolverhampton","702093","Briggs Equiptment UK Limited","708145301","256.30","R&M - Departmental planned (external)","130221065","18/07/2018","Markets","Wholesale Market Facilities Management","R2001"
"Wolverhampton City Council","http://opendatacommunities.org/id/metropolitan-district-council/wolverhampton","702104","Bristow & Sutor","193477","150.00","Bailiff Action","130222064","11/07/2018","Parking Services","Parking Enforcement","R9382"
"Wolverhampton City Council","http://opendatacommunities.org/id/metropolitan-district-council/wolverhampton","702109","British Dyslexia Association","13641","1,590.00","Training Expenses","130223419","25/07/2018","Adult Education","Staff Development","R1650"
"Wolverhampton City Council","http://opendatacommunities.org/id/metropolitan-district-council/wolverhampton","702126","BT (Phone Bills)","CM60158329 Q102XX","91.80","Fixtures and Fittings - R&M","190482786","11/07/2018","Facilities Management","Caretakers Community Centre","R2502"
"Wolverhampton City Council","http://opendatacommunities.org/id/metropolitan-district-council/wolverhampton","702126","BT (Phone Bills)","CM60242642 Q101UF","91.80","Fixtures and Fittings - R&M","190484187","13/07/2018","Maintenance Programme","Centralised R&M","R2502"
"Wolverhampton City Council","http://opendatacommunities.org/id/metropolitan-district-council/wolverhampton","702126","BT (Phone Bills)","CM60242642 Q101UF(1)","40.00","Fixtures and Fittings - R&M","190484188","13/07/2018","Maintenance Programme","Centralised R&M","R2502"
"Wolverhampton City Council","http://opendatacommunities.org/id/metropolitan-district-council/wolverhampton","702126","BT (Phone Bills)","CM59355938 Q11711","96.48","Fixtures and Fittings - R&M","190484180","13/07/2018","Maintenance Programme","Centralised R&M","R2502"
"Wolverhampton City Council","http://opendatacommunities.org/id/metropolitan-district-council/wolverhampton","702126","BT (Phone Bills)","CM59355938 Q116Y6","96.48","Fixtures and Fittings - R&M","190484271","13/07/2018","Maintenance Programme","Centralised R&M","R2502"
"Wolverhampton City Council","http://opendatacommunities.org/id/metropolitan-district-council/wolverhampton","702126","BT (Phone Bills)","CM59355938 Q11711(1)","40.00","Fixtures and Fittings - R&M","190484181","13/07/2018","Maintenance Programme","Centralised R&M","R2502"
"Wolverhampton City Council","http://opendatacommunities.org/id/metropolitan-district-council/wolverhampton","702126","BT (Phone Bills)","CM59689433 Q1102B","91.80","Fixtures and Fittings - R&M","190484183","13/07/2018","Facilities Management","Management of Vacant Properties","R2502"
"Wolverhampton City Council","http://opendatacommunities.org/id/metropolitan-district-council/wolverhampton","702126","BT (Phone Bills)","CM609233290911","131.80","Comms - Telephone Call charges","130220493","13/07/2018","Adults Assessment & Care Management North","Adult Services � North","R4505"
"Wolverhampton City Council","http://opendatacommunities.org/id/metropolitan-district-council/wolverhampton","702126","BT (Phone Bills)","Q080IP","105.90","Comms - Telephone Call charges","190489186","25/07/2018","Leisure Services","Aldersley Leisure Village","R4505"
"Wolverhampton City Council","http://opendatacommunities.org/id/metropolitan-district-council/wolverhampton","702126","BT (Phone Bills)","CM64920663 Q040JQ","91.80","Fixtures and Fittings - R&M","190485620","18/07/2018","Facilities Management","Bilston Town Hall","R2502"
"Wolverhampton City Council","http://opendatacommunities.org/id/metropolitan-district-council/wolverhampton","702126","BT (Phone Bills)","CM59402768 Q164FK","73.80","Fixtures and Fittings - R&M","190482787","11/07/2018","Facilities Management","Civic Centre","R2502"
"Wolverhampton City Council","http://opendatacommunities.org/id/metropolitan-district-council/wolverhampton","702126","BT (Phone Bills)","CM64920657 Q0405K","91.80","Fixtures and Fittings - R&M","190484185","13/07/2018","Facilities Management","Bilston Town Hall","R2502"
"Wolverhampton City Council","http://opendatacommunities.org/id/metropolitan-district-council/wolverhampton","702126","BT (Phone Bills)","CM63816541 Q04913","106.62","Fixtures and Fittings - R&M","190484186","13/07/2018","Facilities Management","Caretakers Community Centre","R2502"
"Wolverhampton City Council","http://opendatacommunities.org/id/metropolitan-district-council/wolverhampton","702126","BT (Phone Bills)","VP 03799470 Q035","3,341.28","Computing - Internet","190489167","25/07/2018","ICTS","Strategic ICTS (ICT Service Budget)","R4537"
"Wolverhampton City Council","http://opendatacommunities.org/id/metropolitan-district-council/wolverhampton","702126","BT (Phone Bills)","CM59020054 Q118UU","91.80","Fixtures and Fittings - R&M","190475659","04/07/2018","Maintenance Programme","Centralised R&M","R2502"
"Wolverhampton City Council","http://opendatacommunities.org/id/metropolitan-district-council/wolverhampton","702126","BT (Phone Bills)","CM59966476 Q103EZ","110.80","Fixtures and Fittings - R&M","190484537","13/07/2018","Facilities Management","Caretakers Community Centre","R2502"
"Wolverhampton City Council","http://opendatacommunities.org/id/metropolitan-district-council/wolverhampton","702126","BT (Phone Bills)","CM59966476 Q106Q6","113.85","Fixtures and Fittings - R&M","190484182","13/07/2018","Facilities Management","Caretakers Community Centre","R2502"
"Wolverhampton City Council","http://opendatacommunities.org/id/metropolitan-district-council/wolverhampton","702126","BT (Phone Bills)","CM68637223 Q010YU","73.80","Fixtures and Fittings - R&M","190484184","13/07/2018","Facilities Management","Management of Vacant Properties","R2502"
"Wolverhampton City Council","http://opendatacommunities.org/id/metropolitan-district-council/wolverhampton","702157","Browne Jacobson Llp","390654","367.00","Services - Professional Fees","130220622","18/07/2018","Human Resources","Equal Pay","R4400"
"Wolverhampton City Council","http://opendatacommunities.org/id/metropolitan-district-council/wolverhampton","702159","Browns Books For Students","BS1802632","220.80","Books","130222502","13/07/2018","Schools","The King�s Church of England School","R4309"
"Wolverhampton City Council","http://opendatacommunities.org/id/metropolitan-district-council/wolverhampton","702171","BT (Business)","IN04138856","2,134.50","Computing - Purchase of Hardware","130220751","25/07/2018","ICTS","Strategic ICTS (ICT Service Budget)","R4530"
"Wolverhampton City Council","http://opendatacommunities.org/id/metropolitan-district-council/wolverhampton","702171","BT (Business)","IN04138856","8.00","Computing - Purchase of Hardware","130220751","25/07/2018","ICTS","Strategic ICTS (ICT Service Budget)","R4530"
"Wolverhampton City Council","http://opendatacommunities.org/id/metropolitan-district-council/wolverhampton","702171","BT (Business)","IN04133173","179.34","Computing - Purchase of Hardware","130220029","18/07/2018","School Planning & Resources","Technical Support","R4530"
"Wolverhampton City Council","http://opendatacommunities.org/id/metropolitan-district-council/wolverhampton","702171","BT (Business)","IN04133173","5.00","Comms - Postage","130220029","18/07/2018","School Planning & Resources","Technical Support","R4503"
"Wolverhampton City Council","http://opendatacommunities.org/id/metropolitan-district-council/wolverhampton","702172","BT Global","477118","2,921.00","Plant, Equipment, Machinery & Computer Hardware","130220495","25/07/2018","-","GF - Accessing Growth Fund","C3000"
"Wolverhampton City Council","http://opendatacommunities.org/id/metropolitan-district-council/wolverhampton","702172","BT Global","477542","104.00","Equipment - Hire","130220624","25/07/2018","Operation & Maintenance of Existing Network","UTC Wolverhampton","R4001"
"Wolverhampton City Council","http://opendatacommunities.org/id/metropolitan-district-council/wolverhampton","702172","BT Global","477399","936.00","Equipment - Hire","130220623","25/07/2018","Operation & Maintenance of Existing Network","Walsall Recovery Costs","R4001"
"Wolverhampton City Council","http://opendatacommunities.org/id/metropolitan-district-council/wolverhampton","702172","BT Global","477903","978.00","Equipment - Hire","130220752","25/07/2018","Operation & Maintenance of Existing Network","UTC Dudley","R4001"
"Wolverhampton City Council","http://opendatacommunities.org/id/metropolitan-district-council/wolverhampton","702181","United Living","CSIN000534","195,956.00","Construction and Conversion","130222812","18/07/2018","-","Structural works","C1100"
"Wolverhampton City Council","http://opendatacommunities.org/id/metropolitan-district-council/wolverhampton","702181","United Living","CSIN000520","4,654.13","Construction and Conversion","130220627","04/07/2018","-","Decent Homes - Stock Improvements","C1100"
"Wolverhampton City Council","http://opendatacommunities.org/id/metropolitan-district-council/wolverhampton","702181","United Living","CSIN000533","859,653.00","Construction and Conversion","130222811","18/07/2018","-","Decent Homes - Stock Improvements","C1100"
"Wolverhampton City Council","http://opendatacommunities.org/id/metropolitan-district-council/wolverhampton","702181","United Living","CSIN000546","110,097.00","Construction and Conversion","130222815","18/07/2018","-","Decent Homes - Stock Improvements","C1100"
"Wolverhampton City Council","http://opendatacommunities.org/id/metropolitan-district-council/wolverhampton","702181","United Living","CSIN000521","6,579.38","R&M - Departmental response (external)","130220628","04/07/2018","Housing Revenue Account","Amounts to be Settled with Wolverhampton Homes","R2003"
"Wolverhampton City Council","http://opendatacommunities.org/id/metropolitan-district-council/wolverhampton","702181","United Living","CSIN000532","356,133.00","Construction and Conversion","130222810","18/07/2018","-","Decent Homes - Stock Improvements","C1100"
"Wolverhampton City Council","http://opendatacommunities.org/id/metropolitan-district-council/wolverhampton","702181","United Living","CSIN000536","582,611.00","Construction and Conversion","130222813","18/07/2018","-","Refurbishment of Voids","C1100"
"Wolverhampton City Council","http://opendatacommunities.org/id/metropolitan-district-council/wolverhampton","702181","United Living","CSIN000537","19,798.00","R&M - Departmental planned (external)","130222814","18/07/2018","Housing Revenue Account","Amounts to be Settled with Wolverhampton Homes","R2001"
"Wolverhampton City Council","http://opendatacommunities.org/id/metropolitan-district-council/wolverhampton","702201","Bury M.B.C","34268766","4,412.68","Client Transport - SEN","130221987","18/07/2018","Special Educational Needs","Special - Transport","R3043"
"Wolverhampton City Council","http://opendatacommunities.org/id/metropolitan-district-council/wolverhampton","702231","Bytes Software Services Limited","516174","757,344.96","Computing - Licences","130219206","04/07/2018","ICTS","Strategic ICTS (ICT Service Budget)","R4535"
"Wolverhampton City Council","http://opendatacommunities.org/id/metropolitan-district-council/wolverhampton","702231","Bytes Software Services Limited","516876","966.00","Computing - Licences","130220031","11/07/2018","Digital Transformation Programme","Digital Transformation Programme","R4535"
"Wolverhampton City Council","http://opendatacommunities.org/id/metropolitan-district-council/wolverhampton","702231","Bytes Software Services Limited","515458","333.32","Computing - Purchase of Software","130218499","11/07/2018","Early Intervention","EIP Locality 3 - Graiseley","R4531"
"Wolverhampton City Council","http://opendatacommunities.org/id/metropolitan-district-council/wolverhampton","702231","Bytes Software Services Limited","518201","2,978.16","Computing - Licences","130221742","25/07/2018","ICTS","Strategic ICTS (ICT Service Budget)","R4535"
"Wolverhampton City Council","http://opendatacommunities.org/id/metropolitan-district-council/wolverhampton","702231","Bytes Software Services Limited","516875","14,836.80","Computing - Licences","130220030","11/07/2018","ICTS","Strategic ICTS (ICT Service Budget)","R4535"
"Wolverhampton City Council","http://opendatacommunities.org/id/metropolitan-district-council/wolverhampton","702231","Bytes Software Services Limited","516875","61,676.16","Computing - Licences","130220030","11/07/2018","ICTS","Strategic ICTS (ICT Service Budget)","R4535"
"Wolverhampton City Council","http://opendatacommunities.org/id/metropolitan-district-council/wolverhampton","702231","Bytes Software Services Limited","517058","2,978.16","Computing - Purchase of Software","130220032","11/07/2018","ICTS","Strategic ICTS (ICT Service Budget)","R4531"
"Wolverhampton City Council","http://opendatacommunities.org/id/metropolitan-district-council/wolverhampton","702231","Bytes Software Services Limited","517059","82,281.12","Computing - Licences","130220033","11/07/2018","ICTS","Strategic ICTS (ICT Service Budget)","R4535"
"Wolverhampton City Council","http://opendatacommunities.org/id/metropolitan-district-council/wolverhampton","702231","Bytes Software Services Limited","515927","5,157.60","Computing - Licences","130218884","04/07/2018","ICTS","Strategic ICTS (ICT Service Budget)","R4535"
"Wolverhampton City Council","http://opendatacommunities.org/id/metropolitan-district-council/wolverhampton","702231","Bytes Software Services Limited","515624","119.61","Computing - Purchase of Software","130218501","18/07/2018","Child Protection","CIN/CP Social Work Unit - Area 3","R4531"
"Wolverhampton City Council","http://opendatacommunities.org/id/metropolitan-district-council/wolverhampton","702231","Bytes Software Services Limited","515459","333.32","Computing - Purchase of Software","130218500","11/07/2018","Child Protection","CIN/CP Social Work Unit - Area 3","R4531"
"Wolverhampton City Council","http://opendatacommunities.org/id/metropolitan-district-council/wolverhampton","702273","Cale Access  UK Ltd (Cale Briparc)","134363","77,310.00","Equipment - Purchase","130221453","13/07/2018","Black Country Transport","Black Country Transport Director","R4000"
"Wolverhampton City Council","http://opendatacommunities.org/id/metropolitan-district-council/wolverhampton","702273","Cale Access  UK Ltd (Cale Briparc)","134066","340.47","Equipment - R & M","130220242","06/07/2018","Parking Services","Car Parks Operational Staff","R4003"
"Wolverhampton City Council","http://opendatacommunities.org/id/metropolitan-district-council/wolverhampton","702273","Cale Access  UK Ltd (Cale Briparc)","122648 - BACS Rejection","200.00","Equipment - R & M","130223402","25/07/2018","Parking Services","Car Parks Operational Staff","R4003"
"Wolverhampton City Council","http://opendatacommunities.org/id/metropolitan-district-council/wolverhampton","702273","Cale Access  UK Ltd (Cale Briparc)","134187","367.62","Equipment - R & M","130221066","18/07/2018","Parking Services","On Street Parking","R4003"
"Wolverhampton City Council","http://opendatacommunities.org/id/metropolitan-district-council/wolverhampton","702273","Cale Access  UK Ltd (Cale Briparc)","134008","873.75","Equipment - R & M","130220241","04/07/2018","Parking Services","Car Parks Operational Staff","R4003"
"Wolverhampton City Council","http://opendatacommunities.org/id/metropolitan-district-council/wolverhampton","702273","Cale Access  UK Ltd (Cale Briparc)","134460","286.17","Equipment - R & M","130222819","25/07/2018","Parking Services","Car Parks Operational Staff","R4003"
"Wolverhampton City Council","http://opendatacommunities.org/id/metropolitan-district-council/wolverhampton","702273","Cale Access  UK Ltd (Cale Briparc)","114800","2,786.40","Equipment - R & M","130222434","18/07/2018","Parking Services","On Street Parking","R4003"
"Wolverhampton City Council","http://opendatacommunities.org/id/metropolitan-district-council/wolverhampton","702273","Cale Access  UK Ltd (Cale Briparc)","114800","2,786.40","Equipment - R & M","130222434","18/07/2018","Parking Services","Car Parks Operational Staff","R4003"
"Wolverhampton City Council","http://opendatacommunities.org/id/metropolitan-district-council/wolverhampton","702273","Cale Access  UK Ltd (Cale Briparc)","134456","259.02","Equipment - R & M","130222816","25/07/2018","Parking Services","On Street Parking","R4003"
"Wolverhampton City Council","http://opendatacommunities.org/id/metropolitan-district-council/wolverhampton","702273","Cale Access  UK Ltd (Cale Briparc)","122622 - BACS Rejection","406.42","Equipment - R & M","130223400","25/07/2018","Parking Services","Car Parks Operational Staff","R4003"
"Wolverhampton City Council","http://opendatacommunities.org/id/metropolitan-district-council/wolverhampton","702273","Cale Access  UK Ltd (Cale Briparc)","134200","505.02","Equipment - R & M","130221067","18/07/2018","Parking Services","On Street Parking","R4003"
"Wolverhampton City Council","http://opendatacommunities.org/id/metropolitan-district-council/wolverhampton","702294","Camlad Ecology Limited","18-004","3,188.00","Construction and Conversion","130221068","18/07/2018","-","Heath Town","C1100"
"Wolverhampton City Council","http://opendatacommunities.org/id/metropolitan-district-council/wolverhampton","702302","Canon (UK) Limited","9225687","1,113.59","Printing","130222617","27/07/2018","Planning","Planning","R4300"
"Wolverhampton City Council","http://opendatacommunities.org/id/metropolitan-district-council/wolverhampton","702302","Canon (UK) Limited","44098301","767.24","Stationery","130221069","11/07/2018","Planning","Planning","R4308"
"Wolverhampton City Council","http://opendatacommunities.org/id/metropolitan-district-council/wolverhampton","702310","Capita Resourcing Limited (Crvs)","R0052060","249.60","Computing - Licences","130215189","04/07/2018","The Hub","Criminal Convictions Checking","R4535"
"Wolverhampton City Council","http://opendatacommunities.org/id/metropolitan-district-council/wolverhampton","702310","Capita Resourcing Limited (Crvs)","R0054442","302.25","Computing - Licences","130221267","25/07/2018","The Hub","Criminal Convictions Checking","R4535"
"Wolverhampton City Council","http://opendatacommunities.org/id/metropolitan-district-council/wolverhampton","702310","Capita Resourcing Limited (Crvs)","R0053606","263.25","Computing - Licences","130218243","04/07/2018","The Hub","Criminal Convictions Checking","R4535"
"Wolverhampton City Council","http://opendatacommunities.org/id/metropolitan-district-council/wolverhampton","702319","Capitol Mobility Services Limited","5381","145.00","Equipment - R & M","130223302","27/07/2018","Parking Services","Shopmobility","R4003"
"Wolverhampton City Council","http://opendatacommunities.org/id/metropolitan-district-council/wolverhampton","702334","HAS Technology Limited","335318","7,992.32","Computing - Maint Agreements","130221454","06/07/2018","Older People Care Purchasing","OP Care Purchasing (Spot Placements)","R4534"
"Wolverhampton City Council","http://opendatacommunities.org/id/metropolitan-district-council/wolverhampton","702355","Caritas Care Limited","17828","1,194.00","TPP - Payments to voluntary groups","130221743","18/07/2018","Looked After Children","Adoption and Residence Team & Allowances","R5200"
"Wolverhampton City Council","http://opendatacommunities.org/id/metropolitan-district-council/wolverhampton","702356","Caritas Recruitment Limited","3080335","1,406.00","Agency Staff","130221749","11/07/2018","Child Protection","MASH","R1100"
"Wolverhampton City Council","http://opendatacommunities.org/id/metropolitan-district-council/wolverhampton","702356","Caritas Recruitment Limited","3079929","1,406.00","Agency Staff","130222115","11/07/2018","Child Protection","MASH","R1100"
"Wolverhampton City Council","http://opendatacommunities.org/id/metropolitan-district-council/wolverhampton","702356","Caritas Recruitment Limited","3078962","1,121.00","Agency Staff","130221746","11/07/2018","Child Protection","MASH","R1100"
"Wolverhampton City Council","http://opendatacommunities.org/id/metropolitan-district-council/wolverhampton","702356","Caritas Recruitment Limited","3081188","1,406.00","Agency Staff","130221751","11/07/2018","Child Protection","MASH","R1100"
"Wolverhampton City Council","http://opendatacommunities.org/id/metropolitan-district-council/wolverhampton","702356","Caritas Recruitment Limited","3078272","1,406.00","Agency Staff","130221744","11/07/2018","Child Protection","MASH","R1100"
"Wolverhampton City Council","http://opendatacommunities.org/id/metropolitan-district-council/wolverhampton","702356","Caritas Recruitment Limited","3078507","1,140.00","Agency Staff","130221745","11/07/2018","Child Protection","MASH","R1100"
"Wolverhampton City Council","http://opendatacommunities.org/id/metropolitan-district-council/wolverhampton","702356","Caritas Recruitment Limited","3079248","1,406.00","Agency Staff","130221747","11/07/2018","Child Protection","MASH","R1100"
"Wolverhampton City Council","http://opendatacommunities.org/id/metropolitan-district-council/wolverhampton","702356","Caritas Recruitment Limited","3081674","1,406.00","Agency Staff","130221752","11/07/2018","Child Protection","MASH","R1100"
"Wolverhampton City Council","http://opendatacommunities.org/id/metropolitan-district-council/wolverhampton","702356","Caritas Recruitment Limited","3080724","1,140.00","Agency Staff","130221750","11/07/2018","Child Protection","MASH","R1100"
"Wolverhampton City Council","http://opendatacommunities.org/id/metropolitan-district-council/wolverhampton","702356","Caritas Recruitment Limited","3082059","1,665.00","Agency Staff","130218720","04/07/2018","Child Protection","MASH","R1100"
"Wolverhampton City Council","http://opendatacommunities.org/id/metropolitan-district-council/wolverhampton","702356","Caritas Recruitment Limited","3079930","1,406.00","Agency Staff","130221748","11/07/2018","Child Protection","MASH","R1100"
"Wolverhampton City Council","http://opendatacommunities.org/id/metropolitan-district-council/wolverhampton","702356","Caritas Recruitment Limited","3082459","1,406.00","Agency Staff","130221754","11/07/2018","Child Protection","MASH","R1100"
"Wolverhampton City Council","http://opendatacommunities.org/id/metropolitan-district-council/wolverhampton","702356","Caritas Recruitment Limited","3082193","1,140.00","Agency Staff","130221753","11/07/2018","Child Protection","MASH","R1100"
"Wolverhampton City Council","http://opendatacommunities.org/id/metropolitan-district-council/wolverhampton","702356","Caritas Recruitment Limited","3083416","1,406.00","Agency Staff","130221755","25/07/2018","Child Protection","MASH","R1100"
"Wolverhampton City Council","http://opendatacommunities.org/id/metropolitan-district-council/wolverhampton","702372","C�Art Art Transport Limited","116908","720.00","Equipment - Purchase","130220496","18/07/2018","Corporate Asset Management","Future Space Decant Area","R4000"
"Wolverhampton City Council","http://opendatacommunities.org/id/metropolitan-district-council/wolverhampton","702380","Carver (Wolverhampton) Limited","01001557628","490.00","Equipment - Purchase","190484314","13/07/2018","Fleet Services","Fleet Management","R4000"
"Wolverhampton City Council","http://opendatacommunities.org/id/metropolitan-district-council/wolverhampton","702380","Carver (Wolverhampton) Limited","PSINV01001596890","137.39","Equipment - Purchase","130222619","23/07/2018","Adult Education","Foundation Studies Delivery Area","R4000"
"Wolverhampton City Council","http://opendatacommunities.org/id/metropolitan-district-council/wolverhampton","702380","Carver (Wolverhampton) Limited","PSINV01001593169","283.29","Materials","130221070","06/07/2018","Environmental Maintenance","Ground Maintenance East","R4007"
"Wolverhampton City Council","http://opendatacommunities.org/id/metropolitan-district-council/wolverhampton","702380","Carver (Wolverhampton) Limited","PSINV01001600369","1,813.50","Materials","130222827","25/07/2018","Bereavement Services","Bereavement services - Grounds maintenance","R4007"
"Wolverhampton City Council","http://opendatacommunities.org/id/metropolitan-district-council/wolverhampton","702380","Carver (Wolverhampton) Limited","PSINV01001596823","113.11","Materials","130222618","18/07/2018","Maintenance Programme","Civic Centre Repairs & Maintenance","R4007"
"Wolverhampton City Council","http://opendatacommunities.org/id/metropolitan-district-council/wolverhampton","702401","Caterpillars Nursery Co UK Limited","NEF Summer 2018 INST 2","11,475.00","TPP - Private Nursery Education Funding","190489824","25/07/2018","Early Years","Early Years Universal Entitlement for 3 and 4 Year Olds","R5035"
"Wolverhampton City Council","http://opendatacommunities.org/id/metropolitan-district-council/wolverhampton","702401","Caterpillars Nursery Co UK Limited","TFT Summer 2018 Inst 2","1,697.76","TPP - Private Nursery Education Funding","190489836","25/07/2018","Early Years","Early Years Entitlement Funding for Disadvantaged 2 Year Olds","R5035"
"Wolverhampton City Council","http://opendatacommunities.org/id/metropolitan-district-council/wolverhampton","702403","Cathedral Hygiene Limited","MI/1081919","410.76","Cleaning Supplies and Materials","130222828","25/07/2018","Early Intervention","EIP Locality 5 � Whitmore Reans","R2705"
"Wolverhampton City Council","http://opendatacommunities.org/id/metropolitan-district-council/wolverhampton","702413","CBRE Limited","50BR100050280","6,780.00","Services - Consultants","130220630","23/07/2018","Housing Revenue Account","HRA General","R4404"
"Wolverhampton City Council","http://opendatacommunities.org/id/metropolitan-district-council/wolverhampton","702413","CBRE Limited","50BR100050282","575.00","Services - Consultants","130220631","18/07/2018","Housing Revenue Account","HRA General","R4404"
"Wolverhampton City Council","http://opendatacommunities.org/id/metropolitan-district-council/wolverhampton","702413","CBRE Limited","50BR100050278","345.00","Services - Consultants","130220629","23/07/2018","Housing Revenue Account","HRA General","R4404"
"Wolverhampton City Council","http://opendatacommunities.org/id/metropolitan-district-council/wolverhampton","702413","CBRE Limited","50BR100050609","3,736.25","Services - Consultants","130222519","25/07/2018","Housing Revenue Account","HRA General","R4404"
"Wolverhampton City Council","http://opendatacommunities.org/id/metropolitan-district-council/wolverhampton","702435","Cent. Learn. PShip Trust T/A Woden","Woden Academy Early Years Autumn Term Interim Payment 2018-19","21,476.70","Grant Payments","190484579","13/07/2018","Central Education","Academy Early years","R4700"
"Wolverhampton City Council","http://opendatacommunities.org/id/metropolitan-district-council/wolverhampton","702435","Cent. Learn. PShip Trust T/A Woden","EYPP Summer 2018","1,431.00","TPP - Private Nursery Education Funding","190489844","25/07/2018","Early Years","Early Years Pupil Premium","R5035"
"Wolverhampton City Council","http://opendatacommunities.org/id/metropolitan-district-council/wolverhampton","702435","Cent. Learn. PShip Trust T/A Woden","Woden Academy Early Years Payment Summer Term 2018-19","41,136.30","Grant Payments","190484555","13/07/2018","Central Education","Academy Early years","R4700"
"Wolverhampton City Council","http://opendatacommunities.org/id/metropolitan-district-council/wolverhampton","702450","GO Carz","11956","8.16","Client Transport","130222438","25/07/2018","Child Protection","CIN/CP Social Work Unit - Area 2","R3042"
"Wolverhampton City Council","http://opendatacommunities.org/id/metropolitan-district-council/wolverhampton","702450","GO Carz","11917","85.20","Section 17","130222435","25/07/2018","Child Protection","CIN/CP Social Work Unit - Area 4","R6403"
"Wolverhampton City Council","http://opendatacommunities.org/id/metropolitan-district-council/wolverhampton","702450","GO Carz","11939","793.08","Client Transport","130222436","25/07/2018","Child Protection","Childrens with Disabilities Team","R3042"
"Wolverhampton City Council","http://opendatacommunities.org/id/metropolitan-district-council/wolverhampton","702452","Central Workwear","4237","159.35","Laundry Expenses","130221989","11/07/2018","Visitor Economy","Art Gallery","R4202"
"Wolverhampton City Council","http://opendatacommunities.org/id/metropolitan-district-council/wolverhampton","702452","Central Workwear","4318","1,956.60","Laundry Expenses","130221072","25/07/2018","Catering","Education Catering - General Overheads","R4202"
"Wolverhampton City Council","http://opendatacommunities.org/id/metropolitan-district-council/wolverhampton","702452","Central Workwear","4317","175.80","Laundry Expenses","130221071","25/07/2018","Public Service Reform","Mayoral Expenses","R4202"
"Wolverhampton City Council","http://opendatacommunities.org/id/metropolitan-district-council/wolverhampton","702477","Changing Our Lives","2018/002","9,025.00","Training Expenses","130221756","11/07/2018","Public Service Reform","Workforce Development","R1650"
"Wolverhampton City Council","http://opendatacommunities.org/id/metropolitan-district-council/wolverhampton","702497","Charterhouse Voice & Data PLC","T631327","270.67","Comms - Telephone Call charges","130219008","04/07/2018","ICTS","Strategic ICTS (ICT Service Budget)","R4505"
"Wolverhampton City Council","http://opendatacommunities.org/id/metropolitan-district-council/wolverhampton","702497","Charterhouse Voice & Data PLC","QUO-20493-B9Z3Q0","5,583.00","Computing - Maint Agreements","130221073","25/07/2018","ICTS","Strategic ICTS (ICT Service Budget)","R4534"
"Wolverhampton City Council","http://opendatacommunities.org/id/metropolitan-district-council/wolverhampton","702497","Charterhouse Voice & Data PLC","TELIN004495","5,700.00","Computing - Repair and Maint","130218721","04/07/2018","Digital Transformation Programme","Digital Transformation Programme","R4533"
"Wolverhampton City Council","http://opendatacommunities.org/id/metropolitan-district-council/wolverhampton","702497","Charterhouse Voice & Data PLC","QUO-20265-F1S7L0","7,276.24","Computing - Maint Agreements","130219501","11/07/2018","ICTS","Strategic ICTS (ICT Service Budget)","R4534"
"Wolverhampton City Council","http://opendatacommunities.org/id/metropolitan-district-council/wolverhampton","702497","Charterhouse Voice & Data PLC","T630364","268.23","Comms - Telephone Call charges","130223004","25/07/2018","ICTS","Strategic ICTS (ICT Service Budget)","R4505"
"Wolverhampton City Council","http://opendatacommunities.org/id/metropolitan-district-council/wolverhampton","702530","Chipside Limited","S182461","160.00","Computing - Purchase of Hardware","130223143","27/07/2018","Parking Services","Parking Enforcement","R4530"
"Wolverhampton City Council","http://opendatacommunities.org/id/metropolitan-district-council/wolverhampton","702543","Chubb Fire & Security Limited","6938099","-355.07","Services - Security","130216845","23/07/2018","Bereavement Services","Cemeteries","R4405"
"Wolverhampton City Council","http://opendatacommunities.org/id/metropolitan-district-council/wolverhampton","702543","Chubb Fire & Security Limited","6955039","195.20","Services - Security","130218504","11/07/2018","Maintenance Programme","Centralised R&M","R4405"
"Wolverhampton City Council","http://opendatacommunities.org/id/metropolitan-district-council/wolverhampton","702543","Chubb Fire & Security Limited","6717867","515.05","Services - Security","130223005","23/07/2018","Bereavement Services","Cemeteries","R4405"
"Wolverhampton City Council","http://opendatacommunities.org/id/metropolitan-district-council/wolverhampton","702543","Chubb Fire & Security Limited","6842947","803.96","Services - Security","130223006","23/07/2018","Bereavement Services","Cemeteries","R4405"
"Wolverhampton City Council","http://opendatacommunities.org/id/metropolitan-district-council/wolverhampton","702543","Chubb Fire & Security Limited","6955058","799.00","Services - Security","130216911","04/07/2018","Maintenance Programme","Centralised R&M","R4405"
"Wolverhampton City Council","http://opendatacommunities.org/id/metropolitan-district-council/wolverhampton","702543","Chubb Fire & Security Limited","6955028","1,001.30","Services - Security","130216895","25/07/2018","Maintenance Programme","Centralised R&M","R4405"
"Wolverhampton City Council","http://opendatacommunities.org/id/metropolitan-district-council/wolverhampton","702543","Chubb Fire & Security Limited","6955034","833.30","Services - Security","130216901","25/07/2018","Maintenance Programme","Centralised R&M","R4405"
"Wolverhampton City Council","http://opendatacommunities.org/id/metropolitan-district-council/wolverhampton","702543","Chubb Fire & Security Limited","6955037","792.88","Services - Security","130216904","23/07/2018","Maintenance Programme","Centralised R&M","R4405"
"Wolverhampton City Council","http://opendatacommunities.org/id/metropolitan-district-council/wolverhampton","702543","Chubb Fire & Security Limited","6976655","250.00","Services - Security","130221757","23/07/2018","Maintenance Programme","Centralised R&M","R4405"
"Wolverhampton City Council","http://opendatacommunities.org/id/metropolitan-district-council/wolverhampton","702543","Chubb Fire & Security Limited","6938100","-911.93","Services - Security","130216846","23/07/2018","Bereavement Services","Cemeteries","R4405"
"Wolverhampton City Council","http://opendatacommunities.org/id/metropolitan-district-council/wolverhampton","702543","Chubb Fire & Security Limited","6954994","900.00","Services - Security","130216866","04/07/2018","Bereavement Services","Cemeteries","R4405"
"Wolverhampton City Council","http://opendatacommunities.org/id/metropolitan-district-council/wolverhampton","702543","Chubb Fire & Security Limited","6972108","154.15","Services - Security","130217452","04/07/2018","Bereavement Services","Cemeteries","R4405"
"Wolverhampton City Council","http://opendatacommunities.org/id/metropolitan-district-council/wolverhampton","702543","Chubb Fire & Security Limited","6955052","829.12","Services - Security","130216908","25/07/2018","Maintenance Programme","Centralised R&M","R4405"
"Wolverhampton City Council","http://opendatacommunities.org/id/metropolitan-district-council/wolverhampton","702543","Chubb Fire & Security Limited","6954982","586.57","Services - Security","130223303","25/07/2018","Maintenance Programme","Centralised R&M","R4405"
"Wolverhampton City Council","http://opendatacommunities.org/id/metropolitan-district-council/wolverhampton","702543","Chubb Fire & Security Limited","6955032","649.04","Services - Security","130216899","25/07/2018","Maintenance Programme","Centralised R&M","R4405"
"Wolverhampton City Council","http://opendatacommunities.org/id/metropolitan-district-council/wolverhampton","702543","Chubb Fire & Security Limited","7001170","202.55","Services - Security","130223304","25/07/2018","Maintenance Programme","Centralised R&M","R4405"
"Wolverhampton City Council","http://opendatacommunities.org/id/metropolitan-district-council/wolverhampton","702543","Chubb Fire & Security Limited","6955001","825.00","Services - Security","130216873","04/07/2018","Bereavement Services","Cemeteries","R4405"
"Wolverhampton City Council","http://opendatacommunities.org/id/metropolitan-district-council/wolverhampton","702543","Chubb Fire & Security Limited","6954992","448.75","Services - Security","130216864","04/07/2018","Bereavement Services","Cemeteries","R4405"
"Wolverhampton City Council","http://opendatacommunities.org/id/metropolitan-district-council/wolverhampton","702543","Chubb Fire & Security Limited","6955053","1,561.52","Services - Security","130216909","25/07/2018","Maintenance Programme","Centralised R&M","R4405"
"Wolverhampton City Council","http://opendatacommunities.org/id/metropolitan-district-council/wolverhampton","702543","Chubb Fire & Security Limited","6955025","1,008.50","Services - Security","130216892","25/07/2018","Maintenance Programme","Centralised R&M","R4405"
"Wolverhampton City Council","http://opendatacommunities.org/id/metropolitan-district-council/wolverhampton","702543","Chubb Fire & Security Limited","6985075","181.31","Services - Security","130221759","25/07/2018","Maintenance Programme","Centralised R&M","R4405"
"Wolverhampton City Council","http://opendatacommunities.org/id/metropolitan-district-council/wolverhampton","702543","Chubb Fire & Security Limited","6975132","167.29","Services - Security","130217807","23/07/2018","Maintenance Programme","Centralised R&M","R4405"
"Wolverhampton City Council","http://opendatacommunities.org/id/metropolitan-district-council/wolverhampton","702543","Chubb Fire & Security Limited","6937953","152.40","Services - Security","130215937","23/07/2018","Facilities Management","Management of Vacant Properties","R4405"
"Wolverhampton City Council","http://opendatacommunities.org/id/metropolitan-district-council/wolverhampton","702543","Chubb Fire & Security Limited","6938156","-256.79","Fixtures and Fittings - R&M","130217592","06/07/2018","Maintenance Programme","Centralised R&M","R2502"
"Wolverhampton City Council","http://opendatacommunities.org/id/metropolitan-district-council/wolverhampton","702543","Chubb Fire & Security Limited","6955013","0.02","Services - Security","130220754","11/07/2018","Maintenance Programme","Centralised R&M","R4405"
"Wolverhampton City Council","http://opendatacommunities.org/id/metropolitan-district-council/wolverhampton","702543","Chubb Fire & Security Limited","6955013","480.87","Services - Security","130220754","11/07/2018","Maintenance Programme","Centralised R&M","R4405"
"Wolverhampton City Council","http://opendatacommunities.org/id/metropolitan-district-council/wolverhampton","702543","Chubb Fire & Security Limited","6955013","0.02","Services - Security","130220754","11/07/2018","Maintenance Programme","Centralised R&M","R4405"
"Wolverhampton City Council","http://opendatacommunities.org/id/metropolitan-district-council/wolverhampton","702543","Chubb Fire & Security Limited","6954978","1,015.95","Services - Security","130216852","04/07/2018","Bereavement Services","Cemeteries","R4405"
"Wolverhampton City Council","http://opendatacommunities.org/id/metropolitan-district-council/wolverhampton","702543","Chubb Fire & Security Limited","6954993","515.05","Services - Security","130216865","04/07/2018","Bereavement Services","Cemeteries","R4405"
"Wolverhampton City Council","http://opendatacommunities.org/id/metropolitan-district-council/wolverhampton","702543","Chubb Fire & Security Limited","6955000","2,091.31","Services - Security","130216872","25/07/2018","Maintenance Programme","Centralised R&M","R4405"
"Wolverhampton City Council","http://opendatacommunities.org/id/metropolitan-district-council/wolverhampton","702543","Chubb Fire & Security Limited","6980752","200.76","Services - Security","130221758","25/07/2018","Maintenance Programme","Centralised R&M","R4405"
"Wolverhampton City Council","http://opendatacommunities.org/id/metropolitan-district-council/wolverhampton","702543","Chubb Fire & Security Limited","6955038","700.91","Services - Security","130216905","25/07/2018","Maintenance Programme","Centralised R&M","R4405"
"Wolverhampton City Council","http://opendatacommunities.org/id/metropolitan-district-council/wolverhampton","702543","Chubb Fire & Security Limited","6975133","273.12","Services - Security","130223144","25/07/2018","Maintenance Programme","Centralised R&M","R4405"
"Wolverhampton City Council","http://opendatacommunities.org/id/metropolitan-district-council/wolverhampton","702543","Chubb Fire & Security Limited","6938103","-195.20","Services - Security","130216849","06/07/2018","Maintenance Programme","Centralised R&M","R4405"
"Wolverhampton City Council","http://opendatacommunities.org/id/metropolitan-district-council/wolverhampton","702543","Chubb Fire & Security Limited","6833035","202.76","Services - Security","130222982","27/07/2018","Bereavement Services","Cemeteries","R4405"
"Wolverhampton City Council","http://opendatacommunities.org/id/metropolitan-district-council/wolverhampton","702543","Chubb Fire & Security Limited","6749435","35.00","Services - Security","130212626","23/07/2018","Bereavement Services","Cemeteries","R4405"
"Wolverhampton City Council","http://opendatacommunities.org/id/metropolitan-district-council/wolverhampton","702557","Cipfa","3135360","290.00","Training Expenses","130221075","11/07/2018","Public Service Reform","Centralised Training","R1650"
"Wolverhampton City Council","http://opendatacommunities.org/id/metropolitan-district-council/wolverhampton","702572","City Demolition Birmingham Limited","3124","36,072.49","Construction and Conversion","130223305","27/07/2018","-","GF - Disposals Programme (Non-Strategic)","C1100"
"Wolverhampton City Council","http://opendatacommunities.org/id/metropolitan-district-council/wolverhampton","702643","Cobalt Telephone Technologies Limited","C180611","16,736.66","Services - Bank Charges","130221627","18/07/2018","Central Corporate Budgets","Corporate Management (Bank Charges)","R4403"
"Wolverhampton City Council","http://opendatacommunities.org/id/metropolitan-district-council/wolverhampton","702643","Cobalt Telephone Technologies Limited","R180630-137","1,155.40","Computing - Maint Agreements","130221628","18/07/2018","Parking Services","Car Parks Operational Staff","R4534"
"Wolverhampton City Council","http://opendatacommunities.org/id/metropolitan-district-council/wolverhampton","702653","Codsall Middle School","CMS14","5,504.00","TPP - Payments to Local Authorities","130220351","11/07/2018","Special Educational Needs","SEN Education OOC","R5100"
"Wolverhampton City Council","http://opendatacommunities.org/id/metropolitan-district-council/wolverhampton","702653","Codsall Middle School","CMS13","2,117.00","TPP - Payments to Local Authorities","130220350","11/07/2018","Special Educational Needs","SEN Education OOC","R5100"
"Wolverhampton City Council","http://opendatacommunities.org/id/metropolitan-district-council/wolverhampton","702658","Coin-A-Drink Limited","926749","102.44","Provisions (Not for resale)","130220036","06/07/2018","Early Intervention","EIP Locality 5 � Whitmore Reans","R4101"
"Wolverhampton City Council","http://opendatacommunities.org/id/metropolitan-district-council/wolverhampton","702658","Coin-A-Drink Limited","361228-1","27.73","Equipment - Hire","130221268","18/07/2018","Bereavement Services","Crematorium","R4001"
"Wolverhampton City Council","http://opendatacommunities.org/id/metropolitan-district-council/wolverhampton","702658","Coin-A-Drink Limited","926575","35.00","Equipment - Hire","130219502","11/07/2018","Early Intervention","EIP Locality 1 - Eastfields","R4001"
"Wolverhampton City Council","http://opendatacommunities.org/id/metropolitan-district-council/wolverhampton","702658","Coin-A-Drink Limited","359403-1","901.68","Provisions (Resale)","130221629","06/07/2018","Local Economy","Penn Library","R4102"
"Wolverhampton City Council","http://opendatacommunities.org/id/metropolitan-district-council/wolverhampton","702658","Coin-A-Drink Limited","927078","200.91","Catering","130219504","11/07/2018","Early Intervention","EIP Locality 1 - Eastfields","R4100"
"Wolverhampton City Council","http://opendatacommunities.org/id/metropolitan-district-council/wolverhampton","702658","Coin-A-Drink Limited","359000-1","73.29","Equipment - Hire","130220352","06/07/2018","Early Intervention","EIP Locality 6 � Dovecotes","R4001"
"Wolverhampton City Council","http://opendatacommunities.org/id/metropolitan-district-council/wolverhampton","702658","Coin-A-Drink Limited","926888","96.72","Catering","130219503","11/07/2018","Early Intervention","EIP Locality 1 - Eastfields","R4100"
"Wolverhampton City Council","http://opendatacommunities.org/id/metropolitan-district-council/wolverhampton","702683","Commercial Body Fittings Limited","0000879540M","20.83","Equipment - Purchase","190488069","25/07/2018","Fleet Services","Fleet Management","R4000"
"Wolverhampton City Council","http://opendatacommunities.org/id/metropolitan-district-council/wolverhampton","702683","Commercial Body Fittings Limited","0000879540M","9.75","Equipment - Purchase","190488069","25/07/2018","Fleet Services","Fleet Management","R4000"
"Wolverhampton City Council","http://opendatacommunities.org/id/metropolitan-district-council/wolverhampton","702683","Commercial Body Fittings Limited","0000879540M","20.83","Equipment - Purchase","190488069","25/07/2018","Fleet Services","Fleet Management","R4000"
"Wolverhampton City Council","http://opendatacommunities.org/id/metropolitan-district-council/wolverhampton","702683","Commercial Body Fittings Limited","0000879540M","11.06","Equipment - Purchase","190488069","25/07/2018","Fleet Services","Fleet Management","R4000"
"Wolverhampton City Council","http://opendatacommunities.org/id/metropolitan-district-council/wolverhampton","702683","Commercial Body Fittings Limited","0000879540M","11.06","Equipment - Purchase","190488069","25/07/2018","Fleet Services","Fleet Management","R4000"
"Wolverhampton City Council","http://opendatacommunities.org/id/metropolitan-district-council/wolverhampton","702683","Commercial Body Fittings Limited","0000879540M","9.73","Equipment - Purchase","190488069","25/07/2018","Fleet Services","Fleet Management","R4000"
"Wolverhampton City Council","http://opendatacommunities.org/id/metropolitan-district-council/wolverhampton","702685","Digraph Transport Supplies Ltd","BRIV069396","43.00","Equipment - Purchase","190490242","27/07/2018","Fleet Services","Fleet Management","R4000"
"Wolverhampton City Council","http://opendatacommunities.org/id/metropolitan-district-council/wolverhampton","702685","Digraph Transport Supplies Ltd","BRIV069391","52.50","Equipment - Purchase","190490241","27/07/2018","Fleet Services","Fleet Management","R4000"
"Wolverhampton City Council","http://opendatacommunities.org/id/metropolitan-district-council/wolverhampton","702685","Digraph Transport Supplies Ltd","BRIV069241","215.00","Equipment - Purchase","190490240","27/07/2018","Fleet Services","Fleet Management","R4000"
"Wolverhampton City Council","http://opendatacommunities.org/id/metropolitan-district-council/wolverhampton","702697","Community Transport","19520","2,086.20","Client Transport","130223010","23/07/2018","Special Educational Needs","Special - Transport","R3042"
"Wolverhampton City Council","http://opendatacommunities.org/id/metropolitan-district-council/wolverhampton","702697","Community Transport","19518","2,327.76","Client Transport","130223008","23/07/2018","Special Educational Needs","Special - Transport","R3042"
"Wolverhampton City Council","http://opendatacommunities.org/id/metropolitan-district-council/wolverhampton","702697","Community Transport","19519","1,851.36","Client Transport","130223009","23/07/2018","Special Educational Needs","Special - Transport","R3042"
"Wolverhampton City Council","http://opendatacommunities.org/id/metropolitan-district-council/wolverhampton","702717","Computershare Vouchers(Ex Busy Bees)","S-0002718499","918.35","Service Charges","130221446","06/07/2018","The Hub","Busy Bees Childcare Vouchers","R2205"
"Wolverhampton City Council","http://opendatacommunities.org/id/metropolitan-district-council/wolverhampton","702719","Concentric","CONCENTRIC07","695.00","No Recourse to Public Funds","130220889","25/07/2018","Child Protection","CIN/CP Social Work Unit - Area 6","R6314"
"Wolverhampton City Council","http://opendatacommunities.org/id/metropolitan-district-council/wolverhampton","702719","Concentric","P17854020180706","500.00","Client Allowances","190481589","11/07/2018","Looked After Children","Looked After Team 2","R6301"
"Wolverhampton City Council","http://opendatacommunities.org/id/metropolitan-district-council/wolverhampton","702723","Concept Elevators (UK) Ltd","NV148510","1,756.86","R&M - Departmental planned (external)","130221457","11/07/2018","Maintenance Programme","Centralised R&M","R2001"
"Wolverhampton City Council","http://opendatacommunities.org/id/metropolitan-district-council/wolverhampton","702723","Concept Elevators (UK) Ltd","NV147691","72.00","R&M - Departmental planned (external)","130220037","18/07/2018","Maintenance Programme","Centralised R&M","R2001"
"Wolverhampton City Council","http://opendatacommunities.org/id/metropolitan-district-council/wolverhampton","702723","Concept Elevators (UK) Ltd","NV148401","99.50","R&M - Departmental planned (external)","130221456","11/07/2018","Maintenance Programme","Centralised R&M","R2001"
"Wolverhampton City Council","http://opendatacommunities.org/id/metropolitan-district-council/wolverhampton","702723","Concept Elevators (UK) Ltd","NV149043","72.00","R&M - Departmental planned (external)","130222337","18/07/2018","Maintenance Programme","Centralised R&M","R2001"
"Wolverhampton City Council","http://opendatacommunities.org/id/metropolitan-district-council/wolverhampton","702723","Concept Elevators (UK) Ltd","NV148039","83.20","R&M - Departmental planned (external)","130219870","18/07/2018","Maintenance Programme","Centralised R&M","R2001"
"Wolverhampton City Council","http://opendatacommunities.org/id/metropolitan-district-council/wolverhampton","702723","Concept Elevators (UK) Ltd","NV148170","4,997.36","R&M - Departmental planned (external)","130220632","18/07/2018","Maintenance Programme","Centralised R&M","R2001"
"Wolverhampton City Council","http://opendatacommunities.org/id/metropolitan-district-council/wolverhampton","702723","Concept Elevators (UK) Ltd","NV148545","18.75","R&M - Departmental planned (external)","130221458","11/07/2018","Maintenance Programme","Centralised R&M","R2001"
"Wolverhampton City Council","http://opendatacommunities.org/id/metropolitan-district-council/wolverhampton","702723","Concept Elevators (UK) Ltd","NV149286","297.60","R&M - Departmental planned (external)","130222837","27/07/2018","Maintenance Programme","Centralised R&M","R2001"
"Wolverhampton City Council","http://opendatacommunities.org/id/metropolitan-district-council/wolverhampton","702723","Concept Elevators (UK) Ltd","NV148392","36.00","R&M - Departmental planned (external)","130221455","11/07/2018","Maintenance Programme","Centralised R&M","R2001"
"Wolverhampton City Council","http://opendatacommunities.org/id/metropolitan-district-council/wolverhampton","702723","Concept Elevators (UK) Ltd","NV148918","138.55","R&M - Departmental planned (external)","130222336","18/07/2018","Maintenance Programme","Centralised R&M","R2001"
"Wolverhampton City Council","http://opendatacommunities.org/id/metropolitan-district-council/wolverhampton","702723","Concept Elevators (UK) Ltd","NV148878","36.00","R&M - Departmental planned (external)","130222335","18/07/2018","Maintenance Programme","Centralised R&M","R2001"
"Wolverhampton City Council","http://opendatacommunities.org/id/metropolitan-district-council/wolverhampton","702741","MIR Sheward Musical Instrument repairs","2244","610.00","Services - Professional Fees","130223012","23/07/2018","School Planning & Resources","Music Support Team","R4400"
"Wolverhampton City Council","http://opendatacommunities.org/id/metropolitan-district-council/wolverhampton","702758","Conwy County Borough Council","100467925 LC","70.00","Business Rates","190490331","27/07/2018","Corporate Asset Management","NNDR","R2300"
"Wolverhampton City Council","http://opendatacommunities.org/id/metropolitan-district-council/wolverhampton","702758","Conwy County Borough Council","ER/243765606","430.00","Education trips, Holidays, Outings & Activities","130223970","27/07/2018","Schools","Woodthorne Primary School","R4970"
"Wolverhampton City Council","http://opendatacommunities.org/id/metropolitan-district-council/wolverhampton","702766","Cooper Mobile Services Ltd","13237","600.00","Hire of Vehicles","190486235","23/07/2018","Fleet Services","Fleet Management","R3200"
"Wolverhampton City Council","http://opendatacommunities.org/id/metropolitan-district-council/wolverhampton","702766","Cooper Mobile Services Ltd","13236","300.00","Hire of Vehicles","190486234","23/07/2018","Fleet Services","Fleet Management","R3200"
"Wolverhampton City Council","http://opendatacommunities.org/id/metropolitan-district-council/wolverhampton","702766","Cooper Mobile Services Ltd","13198","3,150.00","Hire of Vehicles","190486231","23/07/2018","Fleet Services","Fleet Management","R3200"
"Wolverhampton City Council","http://opendatacommunities.org/id/metropolitan-district-council/wolverhampton","702766","Cooper Mobile Services Ltd","13244","300.00","Hire of Vehicles","190486236","23/07/2018","Fleet Services","Fleet Management","R3200"
"Wolverhampton City Council","http://opendatacommunities.org/id/metropolitan-district-council/wolverhampton","702766","Cooper Mobile Services Ltd","13200","3,150.00","Hire of Vehicles","190486233","23/07/2018","Fleet Services","Fleet Management","R3200"
"Wolverhampton City Council","http://opendatacommunities.org/id/metropolitan-district-council/wolverhampton","702766","Cooper Mobile Services Ltd","13199","3,150.00","Hire of Vehicles","190486232","23/07/2018","Fleet Services","Fleet Management","R3200"
"Wolverhampton City Council","http://opendatacommunities.org/id/metropolitan-district-council/wolverhampton","702774","Core Assets Foster Care Associates Ltd","139640","720.00","TPP - Social Care Support Services","130220327","04/07/2018","Looked After Children","Fostering Team & Allowances","R5501"
"Wolverhampton City Council","http://opendatacommunities.org/id/metropolitan-district-council/wolverhampton","702774","Core Assets Foster Care Associates Ltd","9321","5,668.12","Training Expenses","130222117","18/07/2018","Skills","IMPACT","R1650"
"Wolverhampton City Council","http://opendatacommunities.org/id/metropolitan-district-council/wolverhampton","702774","Core Assets Foster Care Associates Ltd","9327","1,728.00","Training Expenses","130222120","18/07/2018","Skills","IMPACT","R1650"
"Wolverhampton City Council","http://opendatacommunities.org/id/metropolitan-district-council/wolverhampton","702774","Core Assets Foster Care Associates Ltd","P177768 22071820180702","3,220.00","TPP - Placement Foster Care Agency","190475351","04/07/2018","Looked After Children","Out of City Placements","R5602"
"Wolverhampton City Council","http://opendatacommunities.org/id/metropolitan-district-council/wolverhampton","702774","Core Assets Foster Care Associates Ltd","9320","5,565.64","Training Expenses","130222116","18/07/2018","Skills","IMPACT","R1650"
"Wolverhampton City Council","http://opendatacommunities.org/id/metropolitan-district-council/wolverhampton","702774","Core Assets Foster Care Associates Ltd","9325","2,160.00","Training Expenses","130222119","18/07/2018","Skills","IMPACT","R1650"
"Wolverhampton City Council","http://opendatacommunities.org/id/metropolitan-district-council/wolverhampton","702774","Core Assets Foster Care Associates Ltd","9296","2,375.99","Training Expenses","130221076","06/07/2018","Skills","IMPACT","R1650"
"Wolverhampton City Council","http://opendatacommunities.org/id/metropolitan-district-council/wolverhampton","702774","Core Assets Foster Care Associates Ltd","9296","0.01","Training Expenses","130221076","06/07/2018","Skills","IMPACT","R1650"
"Wolverhampton City Council","http://opendatacommunities.org/id/metropolitan-district-council/wolverhampton","702774","Core Assets Foster Care Associates Ltd","9324","1,512.00","Training Expenses","130222118","18/07/2018","Skills","IMPACT","R1650"
"Wolverhampton City Council","http://opendatacommunities.org/id/metropolitan-district-council/wolverhampton","702774","Core Assets Foster Care Associates Ltd","9328","5,551.00","Training Expenses","130222121","18/07/2018","Skills","IMPACT","R1650"
"Wolverhampton City Council","http://opendatacommunities.org/id/metropolitan-district-council/wolverhampton","702785","Cosgriff Whitehouse Electrical Limited","CWE82773","295.76","Services - Professional Fees","190480851","04/07/2018","Fleet Services","Fleet Management","R4400"
"Wolverhampton City Council","http://opendatacommunities.org/id/metropolitan-district-council/wolverhampton","702786","Costa Ltd","A-PSI2593980","1,047.57","Provisions (Resale)","130220359","18/07/2018","Catering","Civic Centre Catering","R4102"
"Wolverhampton City Council","http://opendatacommunities.org/id/metropolitan-district-council/wolverhampton","702786","Costa Ltd","A-PSI2586447","313.81","Provisions (Resale)","130219873","25/07/2018","Leisure Services","WV Active Catering","R4102"
"Wolverhampton City Council","http://opendatacommunities.org/id/metropolitan-district-council/wolverhampton","702786","Costa Ltd","A-PSI2586447","218.43","Provisions (Resale)","130219873","25/07/2018","Leisure Services","WV Active Catering","R4102"
"Wolverhampton City Council","http://opendatacommunities.org/id/metropolitan-district-council/wolverhampton","702786","Costa Ltd","A-PSI2565337","81.98","Provisions (Resale)","130218724","04/07/2018","Leisure Services","WV Active Catering","R4102"
"Wolverhampton City Council","http://opendatacommunities.org/id/metropolitan-district-council/wolverhampton","702786","Costa Ltd","A-PSI2565337","446.97","Provisions (Resale)","130218724","04/07/2018","Leisure Services","WV Active Catering","R4102"
"Wolverhampton City Council","http://opendatacommunities.org/id/metropolitan-district-council/wolverhampton","702786","Costa Ltd","A-PSI2593972","96.91","Provisions (Resale)","130220357","18/07/2018","Leisure Services","WV Active Catering - Central","R4102"
"Wolverhampton City Council","http://opendatacommunities.org/id/metropolitan-district-council/wolverhampton","702786","Costa Ltd","A-PSI2593972","203.48","Provisions (Resale)","130220357","18/07/2018","Leisure Services","WV Active Catering - Central","R4102"
"Wolverhampton City Council","http://opendatacommunities.org/id/metropolitan-district-council/wolverhampton","702786","Costa Ltd","A-PSI2541385","207.36","Provisions (Resale)","130223149","25/07/2018","Leisure Services","WV Active Catering","R4102"
"Wolverhampton City Council","http://opendatacommunities.org/id/metropolitan-district-council/wolverhampton","702786","Costa Ltd","A-PSI2541385","211.96","Provisions (Resale)","130223149","25/07/2018","Leisure Services","WV Active Catering","R4102"
"Wolverhampton City Council","http://opendatacommunities.org/id/metropolitan-district-council/wolverhampton","702786","Costa Ltd","A-PSI2588220","105.58","Provisions (Resale)","130220356","18/07/2018","Leisure Services","Bert Williams Leisure Centre Caf�","R4102"
"Wolverhampton City Council","http://opendatacommunities.org/id/metropolitan-district-council/wolverhampton","702786","Costa Ltd","A-PSI2588220","433.67","Provisions (Resale)","130220356","18/07/2018","Leisure Services","Bert Williams Leisure Centre Caf�","R4102"
"Wolverhampton City Council","http://opendatacommunities.org/id/metropolitan-district-council/wolverhampton","702786","Costa Ltd","A-PSI2570916","138.56","Provisions (Resale)","130219102","04/07/2018","Leisure Services","WV Active Catering - Central","R4102"
"Wolverhampton City Council","http://opendatacommunities.org/id/metropolitan-district-council/wolverhampton","702786","Costa Ltd","A-PSI2570916","221.42","Provisions (Resale)","130219102","04/07/2018","Leisure Services","WV Active Catering - Central","R4102"
"Wolverhampton City Council","http://opendatacommunities.org/id/metropolitan-district-council/wolverhampton","702786","Costa Ltd","A-PSI2593973","198.32","Provisions (Resale)","130220358","18/07/2018","Leisure Services","WV Active Catering","R4102"
"Wolverhampton City Council","http://opendatacommunities.org/id/metropolitan-district-council/wolverhampton","702786","Costa Ltd","A-PSI2593973","194.90","Provisions (Resale)","130220358","18/07/2018","Leisure Services","WV Active Catering","R4102"
"Wolverhampton City Council","http://opendatacommunities.org/id/metropolitan-district-council/wolverhampton","702786","Costa Ltd","A-PSI2536732","209.47","Provisions (Resale)","130223148","25/07/2018","Leisure Services","WV Active Catering - Central","R4102"
"Wolverhampton City Council","http://opendatacommunities.org/id/metropolitan-district-council/wolverhampton","702786","Costa Ltd","A-PSI2536732","250.61","Provisions (Resale)","130223148","25/07/2018","Leisure Services","WV Active Catering - Central","R4102"
"Wolverhampton City Council","http://opendatacommunities.org/id/metropolitan-district-council/wolverhampton","702786","Costa Ltd","A-PSI2576918","1,160.32","Provisions (Resale)","130219209","11/07/2018","Catering","Civic Centre Catering","R4102"
"Wolverhampton City Council","http://opendatacommunities.org/id/metropolitan-district-council/wolverhampton","702796","Cougar Monitoring Limited","108836","7,200.00","Services - Security","130222340","13/07/2018","Facilities Management","Culwell Street Depot","R4405"
"Wolverhampton City Council","http://opendatacommunities.org/id/metropolitan-district-council/wolverhampton","702796","Cougar Monitoring Limited","108835","7,200.00","Services - Security","130222339","13/07/2018","Facilities Management","Hickman Avenue Depot","R4405"
"Wolverhampton City Council","http://opendatacommunities.org/id/metropolitan-district-council/wolverhampton","702805","Countrywide Mobility Services Limited","H-28800","2,155.00","Equipment - Purchase","130222520","25/07/2018","Independent Living Service","Independent Living Service","R4000"
"Wolverhampton City Council","http://opendatacommunities.org/id/metropolitan-district-council/wolverhampton","702805","Countrywide Mobility Services Limited","H-28947","480.00","Equipment - R & M","130222122","25/07/2018","Independent Living Service","Independent Living Service","R4003"
"Wolverhampton City Council","http://opendatacommunities.org/id/metropolitan-district-council/wolverhampton","702805","Countrywide Mobility Services Limited","H-28864","1,050.00","Equipment - R & M","130220360","04/07/2018","Independent Living Service","Independent Living Service","R4003"
"Wolverhampton City Council","http://opendatacommunities.org/id/metropolitan-district-council/wolverhampton","702819","CPAG Limited","SI179283","476.14","Publications","130220498","23/07/2018","Community Financial Support","Macmillan Welfare Rights Service","R4310"
"Wolverhampton City Council","http://opendatacommunities.org/id/metropolitan-district-council/wolverhampton","702819","CPAG Limited","SI178412","1,073.60","Publications","130219210","11/07/2018","Community Financial Support","Welfare Rights","R4310"
"Wolverhampton City Council","http://opendatacommunities.org/id/metropolitan-district-council/wolverhampton","702819","CPAG Limited","SI178412","713.79","Publications","130219210","11/07/2018","Community Financial Support","Welfare Rights","R4310"
"Wolverhampton City Council","http://opendatacommunities.org/id/metropolitan-district-council/wolverhampton","702819","CPAG Limited","SI178412","11.49","Comms - Postage","130219210","11/07/2018","Community Financial Support","Welfare Rights","R4503"
"Wolverhampton City Council","http://opendatacommunities.org/id/metropolitan-district-council/wolverhampton","702819","CPAG Limited","SI179164","689.49","Publications","130220362","23/07/2018","Community Financial Support","Welfare Rights","R4310"
"Wolverhampton City Council","http://opendatacommunities.org/id/metropolitan-district-council/wolverhampton","702819","CPAG Limited","SI178914","36.00","Subscriptions","130220361","18/07/2018","Community Financial Support","Welfare Rights","R4701"
"Wolverhampton City Council","http://opendatacommunities.org/id/metropolitan-district-council/wolverhampton","702819","CPAG Limited","SI178914","42.00","Subscriptions","130220361","18/07/2018","Community Financial Support","Welfare Rights","R4701"
"Wolverhampton City Council","http://opendatacommunities.org/id/metropolitan-district-council/wolverhampton","702821","Cpl Petroleum","9968117","16,463.13","Inventories","190488100","25/07/2018","-","General Fund Balance Sheet","B3000"
"Wolverhampton City Council","http://opendatacommunities.org/id/metropolitan-district-council/wolverhampton","702821","Cpl Petroleum","9848509","20,912.11","Inventories","190484333","13/07/2018","-","General Fund Balance Sheet","B3000"
"Wolverhampton City Council","http://opendatacommunities.org/id/metropolitan-district-council/wolverhampton","702821","Cpl Petroleum","9894908","20,926.59","Inventories","190481471","06/07/2018","-","General Fund Balance Sheet","B3000"
"Wolverhampton City Council","http://opendatacommunities.org/id/metropolitan-district-council/wolverhampton","702821","Cpl Petroleum","9894918","20,899.47","Inventories","190481472","06/07/2018","-","General Fund Balance Sheet","B3000"
"Wolverhampton City Council","http://opendatacommunities.org/id/metropolitan-district-council/wolverhampton","702821","Cpl Petroleum","9968121","1,111.74","Inventories","190488101","25/07/2018","-","General Fund Balance Sheet","B3000"
"Wolverhampton City Council","http://opendatacommunities.org/id/metropolitan-district-council/wolverhampton","702821","Cpl Petroleum","9940011","20,663.53","Inventories","190481475","06/07/2018","-","General Fund Balance Sheet","B3000"
"Wolverhampton City Council","http://opendatacommunities.org/id/metropolitan-district-council/wolverhampton","702821","Cpl Petroleum","9968133","19,424.67","Inventories","190488102","25/07/2018","-","General Fund Balance Sheet","B3000"
"Wolverhampton City Council","http://opendatacommunities.org/id/metropolitan-district-council/wolverhampton","702821","Cpl Petroleum","9848501","1,749.11","Inventories","190484332","13/07/2018","-","General Fund Balance Sheet","B3000"
"Wolverhampton City Council","http://opendatacommunities.org/id/metropolitan-district-council/wolverhampton","702821","Cpl Petroleum","9939988","20,596.54","Inventories","190481473","06/07/2018","-","General Fund Balance Sheet","B3000"
"Wolverhampton City Council","http://opendatacommunities.org/id/metropolitan-district-council/wolverhampton","702821","Cpl Petroleum","9939999","1,134.80","Inventories","190481474","06/07/2018","-","General Fund Balance Sheet","B3000"
"Wolverhampton City Council","http://opendatacommunities.org/id/metropolitan-district-council/wolverhampton","702852","Creative Education Limited","127331","299.00","Training Expenses","130220038","04/07/2018","Adult Education","Staff Development","R1650"
"Wolverhampton City Council","http://opendatacommunities.org/id/metropolitan-district-council/wolverhampton","702882","Crossbow Education Limited","CB120414","115.35","Equipment - Purchase","130222123","25/07/2018","Adult Education","Educational Studies Delivery Area","R4000"
"Wolverhampton City Council","http://opendatacommunities.org/id/metropolitan-district-council/wolverhampton","702882","Crossbow Education Limited","CB120414","5.45","Equipment - Purchase","130222123","25/07/2018","Adult Education","Educational Studies Delivery Area","R4000"
"Wolverhampton City Council","http://opendatacommunities.org/id/metropolitan-district-council/wolverhampton","702903","CTT (Wolverhampton) Limited","15723","2,061.10","Client Transport","130223013","23/07/2018","Special Educational Needs","Special - Transport","R3042"
"Wolverhampton City Council","http://opendatacommunities.org/id/metropolitan-district-council/wolverhampton","702903","CTT (Wolverhampton) Limited","15710","550.00","Client Transport","130220890","06/07/2018","Adult Education","Foundation Studies Delivery Area","R3042"
"Wolverhampton City Council","http://opendatacommunities.org/id/metropolitan-district-council/wolverhampton","702903","CTT (Wolverhampton) Limited","15724","2,049.36","Client Transport","130223014","23/07/2018","Special Educational Needs","Special - Transport","R3042"
"Wolverhampton City Council","http://opendatacommunities.org/id/metropolitan-district-council/wolverhampton","702903","CTT (Wolverhampton) Limited","15725","1,900.00","Client Transport","130223015","23/07/2018","Special Educational Needs","Special - Transport","R3042"
"Wolverhampton City Council","http://opendatacommunities.org/id/metropolitan-district-council/wolverhampton","702903","CTT (Wolverhampton) Limited","15726","1,805.00","Client Transport","130223016","23/07/2018","Special Educational Needs","Special - Transport","R3042"
"Wolverhampton City Council","http://opendatacommunities.org/id/metropolitan-district-council/wolverhampton","702910","Cummings Brothers","WC449","30.50","Furniture","130219703","23/07/2018","Facilities Management","Civic Centre","R4004"
"Wolverhampton City Council","http://opendatacommunities.org/id/metropolitan-district-council/wolverhampton","702910","Cummings Brothers","WC461","16.00","Equipment - Purchase","130222842","25/07/2018","Bereavement Services","Cemeteries","R4000"
"Wolverhampton City Council","http://opendatacommunities.org/id/metropolitan-district-council/wolverhampton","702910","Cummings Brothers","WC462","75.00","Equipment - Purchase","130222843","25/07/2018","Environmental Maintenance","Site Works","R4000"
"Wolverhampton City Council","http://opendatacommunities.org/id/metropolitan-district-council/wolverhampton","702910","Cummings Brothers","WC458","68.75","Equipment - Purchase","130222442","18/07/2018","Environmental Maintenance","Parks - Ranger Service","R4000"
"Wolverhampton City Council","http://opendatacommunities.org/id/metropolitan-district-council/wolverhampton","702910","Cummings Brothers","WC458","119.00","Equipment - Purchase","130222442","18/07/2018","Environmental Maintenance","Parks - South West Area Management","R4000"
"Wolverhampton City Council","http://opendatacommunities.org/id/metropolitan-district-council/wolverhampton","702910","Cummings Brothers","WC440","192.00","R&M - Departmental planned (internal)","130217342","11/07/2018","Learning Disability Provider","Support Plus","R2000"
"Wolverhampton City Council","http://opendatacommunities.org/id/metropolitan-district-council/wolverhampton","702910","Cummings Brothers","WC464","15.00","Materials","130223018","25/07/2018","Environmental Maintenance","Parks - Ranger Service","R4007"
"Wolverhampton City Council","http://opendatacommunities.org/id/metropolitan-district-council/wolverhampton","702910","Cummings Brothers","WC467","290.00","Equipment - Purchase","130223021","25/07/2018","Parking Services","Car Parks Operational Staff","R4000"
"Wolverhampton City Council","http://opendatacommunities.org/id/metropolitan-district-council/wolverhampton","702910","Cummings Brothers","WC466","5.00","Equipment - Purchase","130223020","25/07/2018","Bereavement Services","Cemeteries","R4000"
"Wolverhampton City Council","http://opendatacommunities.org/id/metropolitan-district-council/wolverhampton","702910","Cummings Brothers","WC459","60.00","Materials","130222840","25/07/2018","Environmental Maintenance","Parks - Ranger Service","R4007"
"Wolverhampton City Council","http://opendatacommunities.org/id/metropolitan-district-council/wolverhampton","702910","Cummings Brothers","WC454","45.00","R&M - Departmental planned (external)","130220499","13/07/2018","Maintenance Programme","Centralised R&M","R2001"
"Wolverhampton City Council","http://opendatacommunities.org/id/metropolitan-district-council/wolverhampton","702910","Cummings Brothers","WC445","150.50","Materials","130218079","06/07/2018","Environmental Maintenance","Parks - Ranger Service","R4007"
"Wolverhampton City Council","http://opendatacommunities.org/id/metropolitan-district-council/wolverhampton","702910","Cummings Brothers","WC465","10.00","Materials","130223019","25/07/2018","Environmental Maintenance","Parks - Ranger Service","R4007"
"Wolverhampton City Council","http://opendatacommunities.org/id/metropolitan-district-council/wolverhampton","702941","D Brady-Lineldi Limited","17-15-154RE-ISSUE","366.00","Services - Professional Fees","130220756","06/07/2018","Looked After Children","Panel Expenses Fostering & Adoption","R4400"
"Wolverhampton City Council","http://opendatacommunities.org/id/metropolitan-district-council/wolverhampton","703043","Places for People Leisure Management","1060391","100.00","Catering","130218516","04/07/2018","Public Service Reform","Workforce Development","R4100"
"Wolverhampton City Council","http://opendatacommunities.org/id/metropolitan-district-council/wolverhampton","703043","Places for People Leisure Management","1060391","89.86","Room Hire","130218516","04/07/2018","Public Service Reform","Workforce Development","R2201"
"Wolverhampton City Council","http://opendatacommunities.org/id/metropolitan-district-council/wolverhampton","703043","Places for People Leisure Management","1063617","179.72","Room Hire","130221459","27/07/2018","Public Service Reform","Workforce Development","R2201"
"Wolverhampton City Council","http://opendatacommunities.org/id/metropolitan-district-council/wolverhampton","703043","Places for People Leisure Management","1063617","200.00","Catering","130221459","27/07/2018","Public Service Reform","Workforce Development","R4100"
"Wolverhampton City Council","http://opendatacommunities.org/id/metropolitan-district-council/wolverhampton","703043","Places for People Leisure Management","1061530","4,392.60","TPP - Public Health Contracts","130219507","11/07/2018","Sports Development","Free Swim Project (PCT)","R5060"
"Wolverhampton City Council","http://opendatacommunities.org/id/metropolitan-district-council/wolverhampton","703043","Places for People Leisure Management","1060389","269.58","Room Hire","130218515","04/07/2018","Public Service Reform","Workforce Development","R2201"
"Wolverhampton City Council","http://opendatacommunities.org/id/metropolitan-district-council/wolverhampton","703043","Places for People Leisure Management","1060389","300.00","Catering","130218515","04/07/2018","Public Service Reform","Workforce Development","R4100"
"Wolverhampton City Council","http://opendatacommunities.org/id/metropolitan-district-council/wolverhampton","703043","Places for People Leisure Management","1063618","179.72","Room Hire","130221460","27/07/2018","Public Service Reform","Workforce Development","R2201"
"Wolverhampton City Council","http://opendatacommunities.org/id/metropolitan-district-council/wolverhampton","703043","Places for People Leisure Management","1063618","80.00","Catering","130221460","27/07/2018","Public Service Reform","Workforce Development","R4100"
"Wolverhampton City Council","http://opendatacommunities.org/id/metropolitan-district-council/wolverhampton","703043","Places for People Leisure Management","1063614","3,866.40","TPP - Public Health Contracts","130221269","27/07/2018","Sports Development","Free Swim Project (PCT)","R5060"
"Wolverhampton City Council","http://opendatacommunities.org/id/metropolitan-district-council/wolverhampton","703043","Places for People Leisure Management","1061531","40.00","TPP - Public Health Contracts","130219378","11/07/2018","Sports Development","Free Swim Project (PCT)","R5060"
"Wolverhampton City Council","http://opendatacommunities.org/id/metropolitan-district-council/wolverhampton","703044","DC Projects (Wolverhampton) Limited","247","152,727.78","TPP - Other contractors","130218725","04/07/2018","Leisure Services","Leisure P.F.I.Scheme","R5099"
"Wolverhampton City Council","http://opendatacommunities.org/id/metropolitan-district-council/wolverhampton","703044","DC Projects (Wolverhampton) Limited","248","145,642.36","TPP - Other contractors","130221766","27/07/2018","Leisure Services","Leisure P.F.I.Scheme","R5099"
"Wolverhampton City Council","http://opendatacommunities.org/id/metropolitan-district-council/wolverhampton","703050","De Lage Landen Leasing Limited","90731800001206","1,346.87","Services - Professional Fees","130221461","27/07/2018","Human Resources","Salary Sacrifice Schemes","R4400"
"Wolverhampton City Council","http://opendatacommunities.org/id/metropolitan-district-council/wolverhampton","703050","De Lage Landen Leasing Limited","90731800001186","1,060.76","Services - Professional Fees","130221270","25/07/2018","Human Resources","Salary Sacrifice Schemes","R4400"
"Wolverhampton City Council","http://opendatacommunities.org/id/metropolitan-district-council/wolverhampton","703050","De Lage Landen Leasing Limited","90731800001121","1,344.23","Services - Professional Fees","130219632","13/07/2018","Human Resources","Salary Sacrifice Schemes","R4400"
"Wolverhampton City Council","http://opendatacommunities.org/id/metropolitan-district-council/wolverhampton","703050","De Lage Landen Leasing Limited","90731800001120","588.17","Services - Professional Fees","130219631","13/07/2018","Human Resources","Salary Sacrifice Schemes","R4400"
"Wolverhampton City Council","http://opendatacommunities.org/id/metropolitan-district-council/wolverhampton","703063","Dell Corporation/Dell Incorporated","7402449890","7,522.50","Computing - Purchase of Hardware","130222124","18/07/2018","Adult Education","ICT Services","R4530"
"Wolverhampton City Council","http://opendatacommunities.org/id/metropolitan-district-council/wolverhampton","703063","Dell Corporation/Dell Incorporated","7402428233","2,043.02","Grant Payments","130222784","18/07/2018","Schools","Pupil Referral Units - Orchard Centre","R4700"
"Wolverhampton City Council","http://opendatacommunities.org/id/metropolitan-district-council/wolverhampton","703074","Dennis Eagle Limited","DE11144090","317.16","Equipment - Purchase","190488104","25/07/2018","Fleet Services","Fleet Management","R4000"
"Wolverhampton City Council","http://opendatacommunities.org/id/metropolitan-district-council/wolverhampton","703074","Dennis Eagle Limited","328185","196.53","Services - Professional Fees","190480845","04/07/2018","Fleet Services","Fleet Management","R4400"
"Wolverhampton City Council","http://opendatacommunities.org/id/metropolitan-district-council/wolverhampton","703074","Dennis Eagle Limited","328185","15.81","Services - Professional Fees","190480845","04/07/2018","Fleet Services","Fleet Management","R4400"
"Wolverhampton City Council","http://opendatacommunities.org/id/metropolitan-district-council/wolverhampton","703074","Dennis Eagle Limited","328185","32.65","Services - Professional Fees","190480845","04/07/2018","Fleet Services","Fleet Management","R4400"
"Wolverhampton City Council","http://opendatacommunities.org/id/metropolitan-district-council/wolverhampton","703074","Dennis Eagle Limited","328185","61.81","Services - Professional Fees","190480845","04/07/2018","Fleet Services","Fleet Management","R4400"
"Wolverhampton City Council","http://opendatacommunities.org/id/metropolitan-district-council/wolverhampton","703074","Dennis Eagle Limited","328112","40.00","Services - Professional Fees","190480843","04/07/2018","Fleet Services","Fleet Management","R4400"
"Wolverhampton City Council","http://opendatacommunities.org/id/metropolitan-district-council/wolverhampton","703074","Dennis Eagle Limited","328112","511.69","Services - Professional Fees","190480843","04/07/2018","Fleet Services","Fleet Management","R4400"
"Wolverhampton City Council","http://opendatacommunities.org/id/metropolitan-district-council/wolverhampton","703074","Dennis Eagle Limited","328112","78.61","Services - Professional Fees","190480843","04/07/2018","Fleet Services","Fleet Management","R4400"
"Wolverhampton City Council","http://opendatacommunities.org/id/metropolitan-district-council/wolverhampton","703074","Dennis Eagle Limited","328112","117.92","Services - Professional Fees","190480843","04/07/2018","Fleet Services","Fleet Management","R4400"
"Wolverhampton City Council","http://opendatacommunities.org/id/metropolitan-district-council/wolverhampton","703074","Dennis Eagle Limited","DE11137084","98.45","Equipment - Purchase","190484335","13/07/2018","Fleet Services","Fleet Management","R4000"
"Wolverhampton City Council","http://opendatacommunities.org/id/metropolitan-district-council/wolverhampton","703074","Dennis Eagle Limited","DE11137084","126.10","Equipment - Purchase","190484335","13/07/2018","Fleet Services","Fleet Management","R4000"
"Wolverhampton City Council","http://opendatacommunities.org/id/metropolitan-district-council/wolverhampton","703074","Dennis Eagle Limited","DE11137084","10.36","Equipment - Purchase","190484335","13/07/2018","Fleet Services","Fleet Management","R4000"
"Wolverhampton City Council","http://opendatacommunities.org/id/metropolitan-district-council/wolverhampton","703074","Dennis Eagle Limited","DE11137084","284.90","Equipment - Purchase","190484335","13/07/2018","Fleet Services","Fleet Management","R4000"
"Wolverhampton City Council","http://opendatacommunities.org/id/metropolitan-district-council/wolverhampton","703074","Dennis Eagle Limited","DE11137084","659.34","Equipment - Purchase","190484335","13/07/2018","Fleet Services","Fleet Management","R4000"
"Wolverhampton City Council","http://opendatacommunities.org/id/metropolitan-district-council/wolverhampton","703074","Dennis Eagle Limited","DE11137084","150.46","Equipment - Purchase","190484335","13/07/2018","Fleet Services","Fleet Management","R4000"
"Wolverhampton City Council","http://opendatacommunities.org/id/metropolitan-district-council/wolverhampton","703074","Dennis Eagle Limited","DE11138927","20.90","Equipment - Purchase","190486296","23/07/2018","Fleet Services","Fleet Management","R4000"
"Wolverhampton City Council","http://opendatacommunities.org/id/metropolitan-district-council/wolverhampton","703074","Dennis Eagle Limited","DE11139334","65.31","Equipment - Purchase","190486297","23/07/2018","Fleet Services","Fleet Management","R4000"
"Wolverhampton City Council","http://opendatacommunities.org/id/metropolitan-district-council/wolverhampton","703074","Dennis Eagle Limited","DE11137821","39.71","Equipment - Purchase","190483197","11/07/2018","Fleet Services","Fleet Management","R4000"
"Wolverhampton City Council","http://opendatacommunities.org/id/metropolitan-district-council/wolverhampton","703074","Dennis Eagle Limited","DE11142103","184.06","Equipment - Purchase","190490246","27/07/2018","Fleet Services","Fleet Management","R4000"
"Wolverhampton City Council","http://opendatacommunities.org/id/metropolitan-district-council/wolverhampton","703074","Dennis Eagle Limited","DE11142102","29.37","Equipment - Purchase","190490245","27/07/2018","Fleet Services","Fleet Management","R4000"
"Wolverhampton City Council","http://opendatacommunities.org/id/metropolitan-district-council/wolverhampton","703074","Dennis Eagle Limited","DE11137082","13.24","Equipment - Purchase","190481477","06/07/2018","Fleet Services","Fleet Management","R4000"
"Wolverhampton City Council","http://opendatacommunities.org/id/metropolitan-district-council/wolverhampton","703074","Dennis Eagle Limited","328110","432.36","Services - Professional Fees","190480842","04/07/2018","Fleet Services","Fleet Management","R4400"
"Wolverhampton City Council","http://opendatacommunities.org/id/metropolitan-district-council/wolverhampton","703074","Dennis Eagle Limited","DE11134946","123.35","Equipment - Purchase","190480853","04/07/2018","Fleet Services","Fleet Management","R4000"
"Wolverhampton City Council","http://opendatacommunities.org/id/metropolitan-district-council/wolverhampton","703074","Dennis Eagle Limited","328110","40.00","Services - Professional Fees","190480842","04/07/2018","Fleet Services","Fleet Management","R4400"
"Wolverhampton City Council","http://opendatacommunities.org/id/metropolitan-district-council/wolverhampton","703074","Dennis Eagle Limited","328110","98.26","Services - Professional Fees","190480842","04/07/2018","Fleet Services","Fleet Management","R4400"
"Wolverhampton City Council","http://opendatacommunities.org/id/metropolitan-district-council/wolverhampton","703074","Dennis Eagle Limited","328110","354.35","Services - Professional Fees","190480842","04/07/2018","Fleet Services","Fleet Management","R4400"
"Wolverhampton City Council","http://opendatacommunities.org/id/metropolitan-district-council/wolverhampton","703074","Dennis Eagle Limited","328946","176.87","Services - Professional Fees","190483174","11/07/2018","Fleet Services","Fleet Management","R4400"
"Wolverhampton City Council","http://opendatacommunities.org/id/metropolitan-district-council/wolverhampton","703074","Dennis Eagle Limited","328385","98.26","Services - Professional Fees","190483171","11/07/2018","Fleet Services","Fleet Management","R4400"
"Wolverhampton City Council","http://opendatacommunities.org/id/metropolitan-district-council/wolverhampton","703074","Dennis Eagle Limited","328385","58.96","Services - Professional Fees","190483171","11/07/2018","Fleet Services","Fleet Management","R4400"
"Wolverhampton City Council","http://opendatacommunities.org/id/metropolitan-district-council/wolverhampton","703074","Dennis Eagle Limited","328946","255.49","Services - Professional Fees","190483174","11/07/2018","Fleet Services","Fleet Management","R4400"
"Wolverhampton City Council","http://opendatacommunities.org/id/metropolitan-district-council/wolverhampton","703074","Dennis Eagle Limited","328946","233.64","Services - Professional Fees","190483174","11/07/2018","Fleet Services","Fleet Management","R4400"
"Wolverhampton City Council","http://opendatacommunities.org/id/metropolitan-district-council/wolverhampton","703074","Dennis Eagle Limited","DE11140944","252.50","Equipment - Purchase","190484336","13/07/2018","Fleet Services","Fleet Management","R4000"
"Wolverhampton City Council","http://opendatacommunities.org/id/metropolitan-district-council/wolverhampton","703074","Dennis Eagle Limited","DE11141325","141.98","Equipment - Purchase","190484338","13/07/2018","Fleet Services","Fleet Management","R4000"
"Wolverhampton City Council","http://opendatacommunities.org/id/metropolitan-district-council/wolverhampton","703074","Dennis Eagle Limited","329781","491.31","Services - Professional Fees","190490216","27/07/2018","Fleet Services","Fleet Management","R4400"
"Wolverhampton City Council","http://opendatacommunities.org/id/metropolitan-district-council/wolverhampton","703074","Dennis Eagle Limited","329781","58.96","Services - Professional Fees","190490216","27/07/2018","Fleet Services","Fleet Management","R4400"
"Wolverhampton City Council","http://opendatacommunities.org/id/metropolitan-district-council/wolverhampton","703074","Dennis Eagle Limited","DE11137083","87.10","Protective Clothing","190481478","06/07/2018","Fleet Services","Fleet Management","R4200"
"Wolverhampton City Council","http://opendatacommunities.org/id/metropolitan-district-council/wolverhampton","703074","Dennis Eagle Limited","329562","98.26","Services - Professional Fees","190486266","23/07/2018","Fleet Services","Fleet Management","R4400"
"Wolverhampton City Council","http://opendatacommunities.org/id/metropolitan-district-council/wolverhampton","703074","Dennis Eagle Limited","329562","196.53","Services - Professional Fees","190486266","23/07/2018","Fleet Services","Fleet Management","R4400"
"Wolverhampton City Council","http://opendatacommunities.org/id/metropolitan-district-council/wolverhampton","703074","Dennis Eagle Limited","DE11137086","36.09","Equipment - Purchase","190486295","23/07/2018","Fleet Services","Fleet Management","R4000"
"Wolverhampton City Council","http://opendatacommunities.org/id/metropolitan-district-council/wolverhampton","703074","Dennis Eagle Limited","DE11144761","74.41","Equipment - Purchase","190488106","25/07/2018","Fleet Services","Fleet Management","R4000"
"Wolverhampton City Council","http://opendatacommunities.org/id/metropolitan-district-council/wolverhampton","703074","Dennis Eagle Limited","DE11144760","11.43","Equipment - Purchase","190488105","25/07/2018","Fleet Services","Fleet Management","R4000"
"Wolverhampton City Council","http://opendatacommunities.org/id/metropolitan-district-council/wolverhampton","703074","Dennis Eagle Limited","328184","58.96","Services - Professional Fees","190480844","04/07/2018","Fleet Services","Fleet Management","R4400"
"Wolverhampton City Council","http://opendatacommunities.org/id/metropolitan-district-council/wolverhampton","703074","Dennis Eagle Limited","328184","137.57","Services - Professional Fees","190480844","04/07/2018","Fleet Services","Fleet Management","R4400"
"Wolverhampton City Council","http://opendatacommunities.org/id/metropolitan-district-council/wolverhampton","703074","Dennis Eagle Limited","329164","137.57","Services - Professional Fees","190483175","11/07/2018","Fleet Services","Fleet Management","R4400"
"Wolverhampton City Council","http://opendatacommunities.org/id/metropolitan-district-council/wolverhampton","703074","Dennis Eagle Limited","328468","255.48","Services - Professional Fees","190483172","11/07/2018","Fleet Services","Fleet Management","R4400"
